Workbook

Sheet COVER
C3: =UPPER(Lists!K3) -> STATISTICAL OFFICE OF THE EUROPEAN UNION
C5: =Lists!K4 -> Directorate E: Sectoral and regional statistics
C6: =Lists!K5 -> Unit E-2: Environmental statistics and accounts; sustainable development
C7: =UPPER(Lists!K7) -> ANNUAL REPORTING ON BATTERIES AND ACCUMULATORS AND WASTE BATTERIES AND ACCUMULATORS
C8: =CONCATENATE(Lists!K8," DATA COLLECTION") -> 2022 DATA COLLECTION
C9: =CONCATENATE("Launching date: ",Lists!K9) -> Launching date: 2 June 2022

Sheet INDEX
E3: =UPPER(Lists!K3) -> STATISTICAL OFFICE OF THE EUROPEAN UNION
C4: =UPPER(Lists!K7) -> ANNUAL REPORTING ON BATTERIES AND ACCUMULATORS AND WASTE BATTERIES AND ACCUMULATORS
C5: =CONCATENATE(Lists!K8," DATA COLLECTION") -> 2022 DATA COLLECTION
C7: INDEX - STRUCTURE OF THE QUESTIONNAIRE
C9: I. Basic information
C10: TITLE | D10: DESCRIPTION | E10: TYPE
C11: Index | D11: Structure of the questionnaire | E11: for information
C12: Basic instructions | D12: Basic instructions | E12: for reading before filling in the questionnaire
C13: Methodology | D13: Explanatory notes and methodology | E13: for reading before filling in the questionnaire
C14: Validation rules | D14: Validation rules | E14: for reading before filling in the questionnaire
C15: II. Reporting data (To be filled in by the country)
C16: TITLE | D16: DESCRIPTION | E16: TYPE
C17: GETTING STARTED | D17: Country and data collection definition. Administrative data. | E17: for filling in
C18: Footnotes list | D18: List of explanatory footnotes | E18: for filling in
C19: Table 1 | D19: Monitoring Compliance for Directive 2006/66/EC on batteries and accumulators and waste batteries and accumulators | E19: for filling in.
C20: Table 2 | D20: Monitoring Compliance for Directive 2006/66/EC on batteries and accumulators and waste batteries and accumulators Recyling Efficiencies of the recycling processes on waste batteries and accumulators according to REG 493/2012 | E20: for filling in
C21: Voluntary reporting | D21: Voluntary declarations on stocks, shipments and landfilling and voluntary answers on JRC questions on possible further disaggregations by type of battery | E21: for filling in, voluntary reporting
C22: ErrorLog | D22: Validation result. List of errors and warnings revealed by the validation process | E22: for checking accurately before submitting

Sheet Basic Instructions
F3: =UPPER(Lists!K3) -> STATISTICAL OFFICE OF THE EUROPEAN UNION
C4: =UPPER(Lists!K7) -> ANNUAL REPORTING ON BATTERIES AND ACCUMULATORS AND WASTE BATTERIES AND ACCUMULATORS
C5: =CONCATENATE(Lists!K8," DATA COLLECTION") -> 2022 DATA COLLECTION
C7: BASIC INSTRUCTIONS
C8: Before filling in the questionnaire please read carefully the instructions below and the latest version of the document "Compiling guidance for the new reporting format of BATT Excel questionnaire" available at the methodology link. This EXCEL workbook is the questionnaire. Please do not delete or add rows in the questionnaire (except where instructed in the quality report tab).
C9: This questionnaire includes tables 1 to 2 according to Commission Regulation 493/2012 laying down, pursuant to Directive 2006/66/EC, detailed rules regarding the calculation of recycling efficiencies of the recycling processes of waste batteries and accumulators .
C10: Table of contents
C11: 1. Data transmission
C12: 2. Reporting conventions
C13: 3. Footnotes
C14: 4. Methodology and questions
C15: Annex: How to fill in the data sheets of the questionnaire
C17: 1. Data transmission:
C19: Before transmitting the data, it is mandatory to proceed with the validation by pressing the button Validate questionnaire on the top left corner of each table. It is mandatory to verify the ErrorLog sheet and provide explanatory footnotes or corrections for all the errors. The validation rules are explained in detail in sheet Validation Rules.
C20: The standard tool for the transmission of statistical data is the eDAMIS system. The system creates a secure environment for the transmission of data, it records all data submissions and acknowledges the data delivery. The eDAMIS system has been installed in the National Statistical Institutes.
C22: Please submit this questionnaire to Eurostat using the eDAMIS reporting system. Use the following details:
C23: Domain name: | D23: =Lists!K12 -> WASTE
C24: Dataset name: | D24: =Lists!K13 -> WASTE_BATTDAT_A
C26: Should you have any questions regarding data transmission do not hesitate to contact your local eDAMIS coordinator or the Eurostat eDAMIS helpdesk at:
C27: web page: | D27: =Lists!K14 -> https://webgate.ec.europa.eu/edamis/helpcenter/website/index.htm
C28: e-mail address: | D28: =Lists!K15 -> estat-support-edamis@ec.europa.eu
C29: telephone: | D29: =Lists!K17 -> (+352) 4301 33213
C30: For methodological questions please contact:
C31: e-mail address: | D31: =Lists!K20 -> https://ec.europa.eu/eurostat/web/waste/legislation
C33: 2. Reporting conventions:
C35: Reporting of zeroes and not availble data must follow this convention:
C36: Description | D36: Symbol
C37: Real zero | D37: 0
C38: Not available | E38: (empty cell)
C40: 1. White shaded (uncoloured) boxes: provision of data is mandatory
C41: 2. Dark grey shaded boxes: prefilled data coming from previous year, to facilitate prevalidation; these data cannot be changed and inserted; in the case modifications are needed, please contact Eurostat
C42: 3. Light blue shaded boxes: provision of data is voluntary
C43: 4. Light grey shaded boxes: usually these cells contain a formula and the calculation is automatic; in this questionnaire these cells are never locked to permit the prefilling of the questionnaire. Therefore, please do not input any data into these cells if you prefer to have the automatic calculation. In any case, the validation process is highlighting errors and is warning about any inserted value differing from the expected formulas. Finally, inserting manually a formula that differs from the original one is forbidden.
C45: 3. Footnotes:
C47: You are asked to report data that follow as closely as possible batteries and accumulators and waste batteries and accumulators definitions and reporting rules. Please report problems with the coverage or data quality in the Quality Report document.
C49: Flags (footnote symbols) should be entered in the reporting tables in the footnote columns, next to the value cell. There are two types of footnotes:
C50: - Letters for standard footnotes (as defined by Eurostat) and…
C51: - Numbers for explanatory footnotes (to be defined by the data compilers).
C53: 3.1 Standard footnotes
C54: The following footnotes will be used for the automatic data processing and data dissemination. Hence, they cannot be changed:
C55: E) Estimated data
C56: D) Definition differs, see metadata
C57: To include standard footnotes use the drop-down menu.
C59: 3.2 Explanatory footnotes
C60: The explanatory footnotes can be used for any meaning beyond the standard footnotes.
C61: To include an explanatory footnote, please first insert the text in the “Footnote list” sheet starting from number 1. Then in the data table please select the corresponding footnote reference number from the drop-down menu in the footnote column next to the value cell. The text you entered in the “Footnote list” sheet will then appear automatically next to the footnote reference number. The same explanatory footnote can be chosen for all the values for which the same explanation applies. If by mistake a number is chosen from the drop-down menu, it is sufficient to press the key delete to clean the cell.
C62: Please do not report footnotes that elaborate on e.g. source data and compilation methods; these are to be described in the quality report document.
C64: 4. Methodology and questions:
C66: The guidelines to report on packaging and packaging waste are available on Eurostat website:
C67: =Lists!K19 -> https://ec.europa.eu/eurostat/web/waste/methodology
C69: The guidelines contain definitions, examples and recommendations to ensure data are compiled and maintained on consistent basis. They explain the scope and reasoning behind the terms of the tables, and provide extra information necessary to allow a consistent collection and interpretation of the data to be reported by countries. A great effort has been put into increasing coherence and providing guideline users with practical recommendations. Full implementation of these recommendations should help to ensure that data are compiled and maintained on a consistent basis.
C70: A summary methodology is presented in this questionnaire, in the sheet named 'Methodology'. It is essential to read this sheet before filling in the questionnaire as it contains, beside the summary methodology, important information on priorities for filling in the tables, data sources and hints for establishing a methodology at national level.
C71: Annual reporting of batteries and accumulators and waste batteries and accumulators has to be reported according to Commission Regulation 493/2012, by transmitting via eDAMIS this annual data reporting and the methodology report.
C72: If you have questions, please send them to the following email addresses:
C73: =Lists!K18 -> ESTAT-WASTE-STATISTICS@EC.EUROPA.EU
C75: Annex: How to fill in the data sheets of the questionnaire
C77: You are kindly requested to fill in all the four tables belonging to this questionnaire.
C78: 5.1 Tables 1 to 2
C79: 1) All the cells that include mandatory data should be filled in with a value. In the questionnaire all these cells are uncoloured.
C80: 2) When mandatory data is not reported, an explanatory footnote must be provided. If the explanation is extensively explained in the quality report, please add an explanatory footnote with the text "See Quality report, section xxxxx" or alike. This explanatory footnote is only meant for validation purposes and database storage. The official details on unreported data, whenever required, shall be reported in the quality report.
C81: 3) It is possible to insert decimal numbers. The display of decimal positions is limited to 3 decimal places. It is recommended to use all the decimal places when this information is available.
C82: 4) Zero values in this data collection are rare events. It is possible to report zeroes, but it is necessary to insert an explanatory footnote.
C83: 5) To include standard footnotes use the drop-down menu.
C84: 6) The text of explanatory footnotes can be entered in the worksheet 'Footnotes list'.
C85: 7) Provide the quality report, providing all mandatory explanations and any additional or available information related to the data collection. Please remember that the Quality Report has to be transmitted as a separate file, via dataset name WASTE_BATTMTH_A
C86: 8) Moreover, please pay attention to the following legislation, applied to specific indicators reported in the data tables, that will arise the constraints described in the validation rules
C87: TABLE 1: collection rate Calculation of the collection rate should be made according to Annex I of Directive 2006/66/EC by the formula (to be provided in percentage) CR(Y)=3*C(Y)/(S(Y-2)+S(Y-1)+S(Y)) where: CR(Y) is the collection rate calculated for year Y, C(Y) is the collected total battery waste in year Y, S(Y) is the total of battery sales occurred in year Y, S(Y-1) is the total of battery sales occurred in the year Y-1 (the year before year Y), S(Y-2) is the total of battery sales occurred in the year Y-2 (two years before year Y); in this excel questionnaire it is implemented as [Collection rate(%) in year T] = [Collection (Tonnes) in year T] * 100 / Average [Sales (Tonnes) in years T, T-1, T-2]
C88: TABLE 2: recycling efficiency Calculation of the recycling efficiency should be made according to Annex I of Commission Regulation 493/2012 by the formula (to be provided in percentage) Re=Moutput/Minput where, for each waste battery type: Re is the recycling efficiency calculated for year Y, as the ratio of the total Moutput (total mass per type of waste battery accounting for recycling in year Y) divided by the Minput (total mass per type of waste battery entering the recycling facilities in year Y), where the mass is provided in tonnes; the recycling efficiencies has to be calculated separately for the current waste battery types: lead, nickel-cadmium and other batteries; in this excel questionnaire it is implemented as
C89: Recycling efficiency (%) = Moutput, total (Tonnes) * 100 / Minput, total (Tonnes).
C90: TABLE 2: rate of recycled lead content Calculation of the recycled lead content should be made according to Annex II of Commission Regulation 493/2012 by the formula (to be provided in percentage) RPb=MoutputPb/MinputPb where, for each waste battery type: RPb is the rate of recycled lead calculated for year Y, as the ratio of the total MoutputPb (the mass of Pb in output fractions accounting for recycling that is the share of Pb contained in these fractions which results from the recycling of lead-acid batteries and accumulators in year Y) divided by the MinputPb (the mass of Pb in the input fraction entering the battery recycling process that is defined as the yearly average Pb content of waste lead-acid batteries and accumulators multiplied by the input mass of lead-acid batteries and accumulators in year Y), where the mass is provided in tonnes; the rate of recycled lead content has to be calculated on the waste lead-acid battery type; in this excel questionnaire it is implemented as
C91: Rate of recycled lead content (degree of recycled Pb) (%) = Moutput, Pb (Tonnes) * 100 / Minput, Pb (Tonnes).
C92: TABLE 2: rate of recycled cadmium content Calculation of the recycled lead content should be made according to Annex II of Commission Regulation 493/2012 by the formula (to be provided in percentage) RCd=MoutputCd/MinputCd where, for each waste battery type: RCd is the rate of recycled cadmium calculated for year Y, as the ratio of the total MoutputCd (the mass of Cd in output fractions accounting for recycling that is the share of Cd contained in these fractions which results from the recycling of nickel-cadmium batteries and accumulators in year Y) divided by the MinputCd (the mass of Cd in the input fraction entering the battery recycling process that is defined as the yearly average Cd content of waste nickel-cadmium batteries and accumulators multiplied by the input mass of nickel-cadmium batteries and accumulators in year Y), where the mass is provided in tonnes; the rate of recycled cadmium content has to be calculated on the waste nickel-cadmium battery type; in this excel questionnaire it is implemented as
C93: Rate of recycled cadmium content (degree of recycled Cd) (%) = Moutput, Cd (Tonnes) * 100 / Minput, Cd (Tonnes).

Sheet Methodology
F3: =UPPER(Lists!K3) -> STATISTICAL OFFICE OF THE EUROPEAN UNION
C4: =UPPER(Lists!K7) -> ANNUAL REPORTING ON BATTERIES AND ACCUMULATORS AND WASTE BATTERIES AND ACCUMULATORS
C5: =CONCATENATE(Lists!K8," DATA COLLECTION") -> 2022 DATA COLLECTION
C7: METHODOLOGY AND LEGAL ACTS
C8: Table of contents
C9: 1. Background
C10: 2. Legal acts
C11: 3. Data reporting - questionnaire
C13: 1. Background
C15: The European Parliament and the Council adopted Directive 2006/66/EC in order to:
C16: - prevent or reduce the placing on the market of batteries and accumulators containing hazardous substances,
C17: - provide specific rules for the collection, treatment, recycling and disposal of waste batteries and accumulators,
C18: - promote a high level of collection and recycling of waste batteries and accumulators.
C20: This reporting template allows Member States to report recycling efficiencies of the recycling processes of waste batteries and accumulators according to Commission Regulation 493/2012 laying down, pursuant to Directive 2006/66/EC of the European Parliament and of the Council, detailed rules regarding the calculation of recycling efficiencies of the recycling processes of waste batteries and accumulators.
C22: The guidelines are available here:
C23: =Lists!K19 -> https://ec.europa.eu/eurostat/web/waste/methodology
C25: 2. Legal acts
C27: Directive 2006/66/EC of the European Parliament and of the Council of 6 September 2006 on batteries and accumulators and waste batteries and accumulators and repealing Directive 91/157/EEC, as last amended.
C28: Commission Regulation (EU) No 493/2012 of 11 June 2012 laying down, pursuant to Directive 2006/66/EC of the European Parliament and of the Council, detailed rules regarding the calculation of recycling efficiencies of the recycling processes of waste batteries and accumulators.
C29: The legislation is available here:
C30: =Lists!K20 -> https://ec.europa.eu/eurostat/web/waste/legislation
C32: 3. Data reporting - questionnaire
C34: This document assists Member States to report high quality, harmonised and efficient statistics recycling efficiencies of the recycling processes of waste batteries and accumulators according to Commission Regulation 493/2012. Detailed instructions can be found in the guidance document referred to above.
C35: The reporting shall cover a full calendar year.
C36: The basic instructions sheet consists of some information necessary for filling in this questionnaire correctly, like country codes, reference years, unit of measure, allowed symbols, metadata, footnotes, and transmission to Eurostat.
C37: The quality report has to be transmitted as a separate file, via eDAMIS under dataset name WASTE_BATTMTH_A, it should contain methodology and coverage of the data collection, according to the guidance document referred to above.

Sheet Validation rules
F3: =UPPER(Lists!K3) -> STATISTICAL OFFICE OF THE EUROPEAN UNION
C4: =UPPER(Lists!K7) -> ANNUAL REPORTING ON BATTERIES AND ACCUMULATORS AND WASTE BATTERIES AND ACCUMULATORS
C5: =CONCATENATE(Lists!K8," DATA COLLECTION") -> 2022 DATA COLLECTION
C7: VALIDATION RULES
C9: An automatic validation tool is provided along with this questionnaire. In order to launch the validation process, please use the button "Validate Questionnaire", placed on the top left corner of each reporting table.
C10: The validation process evaluates a list of predefined logical and arithmetic statements, such as "a value exists in this cell" or "A = A01+A02+A03". These predefined logical and arithmetic statements are called "Validation rules".
C11: When the criteria defined in a validation rule is not met, the validation process will issue a "positive" result (This is same terminology used for medical tests). This "positive" result can be an "error" or a "warning", and will be recorded in the ErrorLog sheet.
D12: A "warning" is an issue that requires the attention of the desk officer at Eurostat. It will be further analysed and it might trigger further questions to the data provider.
D13: An "error" is an issue that will trigger further question from Eurostat to the data provider and will very likely end with the request from Eurostat for a new data submission.
C14: The countries are kindly requested to launch the validation tool before submitting the questionnaire, and correct the errors highlighted in the ErrorLog sheet.
C15: Important facts to notice:
D16: Empty cells are accounted as 0 in the formulas defining aggregation of data (totals)
D17: It is possible to supersede the automatic calculation of formulas. In this questionnaire, all the cells are unlocked. In case of prefilling of previous years, the formulas are substituted with the reported value. Please have a look at sheet "Basic instructions" and at the comments in the tables to see the source of the formula arising from the legislation.
C18: The following validation rules are implemented by the validation tool
C19: Table of contents
C20: 1. Mandatory data
C21: 2. Arithmetic rules
C24: 1. Mandatory Data:
C26: All the information requested in the sheet "GETTING STARTED" must be filled in.
C27: All the mandatory cells in tables 1 and 2 must be filled-in. Otherwise the automatic vaiidation process will issue an "error" in the ErrorLog sheet.
C28: In case the mandatory data is not available please add an explanatory footnote providing a justification for failing to provide a mandatory figure. In this case, the automatic validation process will display a "warning" issue in the error log. This explanatory footnote is only meant for validation purposes and database storage. The official details on unreported data, whenever required, shall be reported in the quality report.
C30: 2. Arithmetic rules
C32: All reported values must be bigger than 0 (positive values)
C33: Zero values will trigger an "error" unless the justification is described by an explanatory footnote.
C34: TABLE_1:
D35: Collection rate(%) in a year T must be equal to the waste collected in tonnes in year T, multiplied by 100 and then divided by the average of the sales made in the years T, T-1, T-2, as in this formula: [Collection rate(%) in year T] = [Collection (Tonnes) in year T] * 100 / Average [Sales (Tonnes) in years T, T-1, T-2] If the reported value does not correspond or if the value is higher than 100: please provide an explanation in the explanatory footnote and in the quality report
D36: When voluntary amounts are reported: for each year, Sales (Tonnes) for Portable batteries and accumulators should be the sum of Lead batteries, Ni-Cd Batteries and Other batteries and accumulators (if the reported value does not correspond, please provide an explanation in the explanatory footnote and in the quality report); if at least two out of three disaggregated value are missing, Sales (Tonnes) for Portable batteries and accumulators can be higher than the sum (if the reported value does not correspond, please provide an explanation in the explanatory footnote and in the quality report).
D37: When voluntary amounts are reported: for each year, Collection (Tonnes) for Portable batteries and accumulators should be the sum of Lead batteries, Ni-Cd Batteries and Other batteries and accumulators (if the reported value does not correspond, please provide an explanation in the explanatory footnote and in the quality report); if at least two out of three disaggregated value are missing, Collection (Tonnes) for Portable batteries and accumulators can be higher than the sum (if the reported value does not correspond, please provide an explanation in the explanatory footnote and in the quality report).
C38: TABLE_2:
D39: These formulas are applied in the validation process when calculating the recycling efficiencies and the rates of recycled metals:
D40: Recycling efficiency (%) = Moutput, total (Tonnes) * 100 / Minput, total (Tonnes).
D41: Rate of recycled lead content (degree of recycled Pb) (%) = Moutput, Pb (Tonnes) * 100 / Minput, Pb (Tonnes).
D42: Rate of recycled cadmium content (degree of recycled Cd) (%) = Moutput, Cd (Tonnes) * 100 / Minput, Cd (Tonnes).
D43: Any deviation from those values will issue an error message highlighted in the sheet "ErrorLog", that you must justify in the explanatory footnote and in the quality report document. When the justification in the footnote is provided, a warning may still appear. Finally, the rates are higher than 100%, an error message will appear: please correct the values, as the Minputs must be higher than the Moutputs.
D44: Mass outputs cannot be higher than mass inputs; in the case of the cadmium content recycling, the mass Moutput, Cd may be equal to the Minput (as of the current state of the art, the recycling technology in cadmium content permits the full recycling of the cadmium fraction).
D45: The following two rules applies to lead batteries and accumulators: the lead content of lead batteries is arising from the sole fraction of treated material that is containing lead, once the rest of parts and materials (for instance the battery's chassis) have been separated from the fraction containing lead; if the reported values do not respect this rule, please provide an explanation in the explanatory footnote and in the quality report:
D46: Input mass (Minput, total) for lead batteries must be higher than input mass for lead content of lead batteries (Minput, Pb).
D47: Output mass (Moutput, total) for lead batteries must be higher than output mass for lead content of lead batteries (Moutput, Pb).
D48: The following two rules applies to nickel cadmium batteries and accumulators: the cadmium content of Ni-Cd batteries is arising from the sole fraction of treated material that is containing cadmium, once the rest of parts and materials (for instance the battery's chassis) have been separated from the fraction containing cadmium; if the reported values do not respect this rule, please provide an explanation in the explanatory footnote and in the quality report:
D49: Input mass (Minput, total) for Ni-Cd batteries must be higher than input mass (Minput, Cd) for cadmium content of cadmium batteries.
D50: Output mass (Moutput, total) for Ni-Cd batteries must be higher than output mass (Moutput, Cd) for cadmium content of cadmium batteries.
C52: 3. Explanatory footnotes
C54: When an explanatory footnote is referenced (by means of a number selected from a drop-down list), the referenced footnote must not be empty.

Sheet GETTING STARTED
G3: =UPPER(Lists!K3) -> STATISTICAL OFFICE OF THE EUROPEAN UNION
C4: =UPPER(Lists!K7) -> ANNUAL REPORTING ON BATTERIES AND ACCUMULATORS AND WASTE BATTERIES AND ACCUMULATORS
C5: =CONCATENATE(Lists!K8," DATA COLLECTION") -> 2022 DATA COLLECTION
C7: GETTING STARTED
C9: Please select your country (click on the white cell): | E9: Luxembourg | G9: =IF(E9="","",VLOOKUP(E9,Lists!A2:B40,2,FALSE)) -> LU
C10: Reference year: | E10: 2020
C11: =CONCATENATE("The due date for reporting is ",Lists!K10) -> The due date for reporting is 30 June 2022
C12: ="Who is the primary contact point for the data collection '" & Lists!K7&"' in your country?" -> Who is the primary contact point for the data collection 'Annual reporting on batteries and accumulators and waste batteries and accumulators' in your country?
C14: Name: | D14: Fabien Wahl
C16: Institution: | D16: Administration de l'environnement
C18: Unit: | D18: Unité Surveillance et évaluation de l'environnement
C20: Telephone: | D20: 40 56 56 - 1
C22: Email adress: | D22: fabien.wahl@aev.etat.lu
C23: Eurostat would be grateful if you could send us the completed questionnaire ahead of the deadline.

Sheet Footnotes list
E3: =UPPER(Lists!K3) -> STATISTICAL OFFICE OF THE EUROPEAN UNION
D4: =UPPER(Lists!K7) -> ANNUAL REPORTING ON BATTERIES AND ACCUMULATORS AND WASTE BATTERIES AND ACCUMULATORS
D5: =CONCATENATE(Lists!K8," DATA COLLECTION") -> 2022 DATA COLLECTION
D7: EXPLANATORY FOOTNOTES
D8: =IF('GETTING STARTED'!E9="","",'GETTING STARTED'!E9) -> Luxembourg
D9: 1 | E9: 14@rounding error
D10: 2 | E10: The data for 2015 and 2016 only has a precision of 1 decimal. Since 2017 Luxembourg uses a precision of 3 decimals.
D11: 3 | E11: The number of Ni-Cd batteries put on the market dropped over the last years but there are still Ni-Cd batteries collected
D12: 4 | E12: Only the rate of recycling is known from the recyclers. The lead respectively cadmium content has been estimated.
D13: 5
D14: 6
D15: 7
D16: 8
D17: 9
D18: 10
D19: 11
D20: 12
D21: 13
D22: 14
D23: 15
D24: 16
D25: 17
D26: 18
D27: 19
D28: 20
D29: 21
D30: 22
D31: 23
D32: 24
D33: 25
D34: 26
D35: 27
D36: 28
D37: 29
D38: 30
D39: 31
D40: 32
D41: 33
D42: 34
D43: 35
D44: 36
D45: 37
D46: 38
D47: 39
D48: 40
D49: 41
D50: 42
D51: 43
D52: 44
D53: 45
D54: 46
D55: 47
D56: 48
D57: 49
D58: 50

Sheet Table_1
E4: TABLE 1: Monitoring Compliance for Directive 2006/66/EC on batteries and accumulators and waste batteries and accumulators Collection of Portable Batteries and Accumulators | AA4: PLAUSIBILITY WARNINGS
E5: Country: | F5: ='GETTING STARTED'!G9 -> LU | G5: =IF('GETTING STARTED'!E9="","",'GETTING STARTED'!E9) -> Luxembourg
E6: Reference year: | F6: =IF('GETTING STARTED'!E10="","",'GETTING STARTED'!E10) -> 2020
G7: =CONCATENATE((F6-4),CHAR(10),"(not editable)") -> 2016 (not editable) | H7: Standard footnotes | I7: Explanatory footnote | K7: =CONCATENATE((F6-3),CHAR(10),"(not editable)") -> 2017 (not editable) | L7: Standard footnotes | M7: Explanatory footnote | O7: =F6-2 -> 2018 | P7: Standard footnotes | Q7: Explanatory footnote | S7: =F6-1 -> 2019 | T7: Standard footnotes | U7: Explanatory footnote | W7: =F6 -> 2020 | X7: Standard footnotes | Y7: Explanatory footnote | AA7: Time series analysis against reference year | AB7: Reference year analysis | AC7: Previous years
A8: T | B8: W1606B | C8: MKT | E8: Portable batteries and accumulators (W1606B) | F8: Sales (Tonnes) | G8: 196.05 | J8: =IF(TRIM(I8)="", "", IF(VLOOKUP(I8,'Footnotes list'!$D$9:$E$107,2,FALSE)=0,"",VLOOKUP(I8,'Footnotes list'!$D$9:$E$107,2,FALSE) ) ) ->  | K8: 200.67 | N8: =IF(TRIM(M8)="", "", IF(VLOOKUP(M8,'Footnotes list'!$D$9:$E$107,2,FALSE)=0,"",VLOOKUP(M8,'Footnotes list'!$D$9:$E$107,2,FALSE) ) ) ->  | O8: 209.329 | R8: =IF(TRIM(Q8)="", "", IF(VLOOKUP(Q8,'Footnotes list'!$D$9:$E$107,2,FALSE)=0,"",VLOOKUP(Q8,'Footnotes list'!$D$9:$E$107,2,FALSE) ) ) ->  | S8: 241.919 | V8: =IF(TRIM(U8)="", "", IF(VLOOKUP(U8,'Footnotes list'!$D$9:$E$107,2,FALSE)=0,"",VLOOKUP(U8,'Footnotes list'!$D$9:$E$107,2,FALSE) ) ) ->  | W8: 261.437475 | Z8: =IF(TRIM(Y8)="", "", IF(VLOOKUP(Y8,'Footnotes list'!$D$9:$E$107,2,FALSE)=0,"",VLOOKUP(Y8,'Footnotes list'!$D$9:$E$107,2,FALSE) ) ) ->  | AA8: =IF(ISNUMBER(W8), IF(ABS(W8-AVERAGE(G8, K8, O8,S8))>0.1*(W8+AVERAGE(G8, K8, O8,S8)),"Warning: there is a percentage difference higher than 20% between the reference year and the average of the previous 4 years","The percentage difference is below 20%"),"Warning: mandatory cell is empty, please provide value or explanation") -> Warning: there is a percentage difference higher than 20% between the reference year and the average of the previous 4 years | AC8: =CONCATENATE(IF(ISNUMBER(S8), IF(ABS(S8-AVERAGE(G8, K8, O8,W8))>0.1*(S8+AVERAGE(G8, K8, O8,W8)),"Warning: there is a percentage difference higher than 20% between cell S8 and the average of the other 4 years ",""),"Warning: mandatory cell S8 is empty, please provide value or explanation "), IF(ISNUMBER(O8), IF(ABS(O8-AVERAGE(G8, K8, S8,W8))>0.1*(O8+AVERAGE(G8, K8, S8,W8)),"Warning: there is a percentage difference higher than 20% between cell O8 and the average of the other 4 years",""),"Warning: mandatory cell O8 is empty, please provide value or explanation")) -> 
A9: T | B9: W1606B | C9: COL | F9: Collection (Tonnes) | G9: 113.95 | J9: =IF(TRIM(I9)="", "", IF(VLOOKUP(I9,'Footnotes list'!$D$9:$E$107,2,FALSE)=0,"",VLOOKUP(I9,'Footnotes list'!$D$9:$E$107,2,FALSE) ) ) ->  | K9: 108.706 | N9: =IF(TRIM(M9)="", "", IF(VLOOKUP(M9,'Footnotes list'!$D$9:$E$107,2,FALSE)=0,"",VLOOKUP(M9,'Footnotes list'!$D$9:$E$107,2,FALSE) ) ) ->  | O9: 139.923 | R9: =IF(TRIM(Q9)="", "", IF(VLOOKUP(Q9,'Footnotes list'!$D$9:$E$107,2,FALSE)=0,"",VLOOKUP(Q9,'Footnotes list'!$D$9:$E$107,2,FALSE) ) ) ->  | S9: 155.721 | V9: =IF(TRIM(U9)="", "", IF(VLOOKUP(U9,'Footnotes list'!$D$9:$E$107,2,FALSE)=0,"",VLOOKUP(U9,'Footnotes list'!$D$9:$E$107,2,FALSE) ) ) ->  | W9: 162.707889 | Z9: =IF(TRIM(Y9)="", "", IF(VLOOKUP(Y9,'Footnotes list'!$D$9:$E$107,2,FALSE)=0,"",VLOOKUP(Y9,'Footnotes list'!$D$9:$E$107,2,FALSE) ) ) ->  | AA9: Warning: there is a percentage difference higher than 20% between the reference year and the average of the previous 4 years | AC9: =CONCATENATE(IF(ISNUMBER(S9), IF(ABS(S9-AVERAGE(G9, K9, O9,W9))>0.1*(S9+AVERAGE(G9, K9, O9,W9)),"Warning: there is a percentage difference higher than 20% between cell S9 and the average of the other 4 years ",""),"Warning: mandatory cell S9 is empty, please provide value or explanation "), IF(ISNUMBER(O9), IF(ABS(O9-AVERAGE(G9, K9, S9,W9))>0.1*(O9+AVERAGE(G9, K9, S9,W9)),"Warning: there is a percentage difference higher than 20% between cell O9 and the average of the other 4 years",""),"Warning: mandatory cell O9 is empty, please provide value or explanation")) -> 
A10: PC | B10: W1606B | C10: COL | F10: Collection rate (%) | G10: 63.37 | I10: 1 | J10: =IF(TRIM(I10)="", "", IF(VLOOKUP(I10,'Footnotes list'!$D$9:$E$107,2,FALSE)=0,"",VLOOKUP(I10,'Footnotes list'!$D$9:$E$107,2,FALSE) ) ) -> 14@rounding error | K10: 57.305 | M10: 2 | N10: =IF(TRIM(M10)="", "", IF(VLOOKUP(M10,'Footnotes list'!$D$9:$E$107,2,FALSE)=0,"",VLOOKUP(M10,'Footnotes list'!$D$9:$E$107,2,FALSE) ) ) -> The data for 2015 and 2016 only has a precision of 1 decimal. Since 2017 Luxembourg uses a precision of 3 decimals. | O10: 69.262 | Q10: 2 | R10: =IF(TRIM(Q10)="", "", IF(VLOOKUP(Q10,'Footnotes list'!$D$9:$E$107,2,FALSE)=0,"",VLOOKUP(Q10,'Footnotes list'!$D$9:$E$107,2,FALSE) ) ) -> The data for 2015 and 2016 only has a precision of 1 decimal. Since 2017 Luxembourg uses a precision of 3 decimals. | S10: 71.66 | V10: =IF(TRIM(U10)="", "", IF(VLOOKUP(U10,'Footnotes list'!$D$9:$E$107,2,FALSE)=0,"",VLOOKUP(U10,'Footnotes list'!$D$9:$E$107,2,FALSE) ) ) ->  | W10: =IF(OR(W9="",CONCATENATE(O8,S8,W8)=""),"",W9*100/AVERAGE(O8,S8,W8)) -> 68.49075562 | Z10: =IF(TRIM(Y10)="", "", IF(VLOOKUP(Y10,'Footnotes list'!$D$9:$E$107,2,FALSE)=0,"",VLOOKUP(Y10,'Footnotes list'!$D$9:$E$107,2,FALSE) ) ) ->  | AA10: The percentage difference is below 20% | AB10: =IF( ISNUMBER(W10), IF((W10<45),"Warning: please check reported values, the target of 45% is not reached",IF((W10>100),"Warning: the rate should be below 100, explanatory footnote required", "The country has reached 45% in collection rate")),"Warning: mandatory cell is empty, please provide value") -> The country has reached 45% in collection rate | AC10: =CONCATENATE(IF(ISNUMBER(S10), IF(ABS(S10-AVERAGE(G10, K10, O10,W10))>0.1*(S10+AVERAGE(G10, K10, O10,W10)),"Warning: there is a percentage difference higher than 20% between cell S10 and the average of the other 4 years ",""),"Warning: mandatory cell S10 is empty, please provide value or explanation "), IF(ISNUMBER(O10), IF(ABS(O10-AVERAGE(G10, K10, S10,W10))>0.1*(O10+AVERAGE(G10, K10, S10,W10)),"Warning: there is a percentage difference higher than 20% between cell O10 and the average of the other 4 years",""),"Warning: mandatory cell O10 is empty, please provide value or explanation")) -> 
A11: T | B11: W160601 | C11: MKT | E11: Lead batteries (W160601) (*) | F11: Sales (Tonnes) | J11: =IF(TRIM(I11)="", "", IF(VLOOKUP(I11,'Footnotes list'!$D$9:$E$107,2,FALSE)=0,"",VLOOKUP(I11,'Footnotes list'!$D$9:$E$107,2,FALSE) ) ) ->  | K11: 6.562 | N11: =IF(TRIM(M11)="", "", IF(VLOOKUP(M11,'Footnotes list'!$D$9:$E$107,2,FALSE)=0,"",VLOOKUP(M11,'Footnotes list'!$D$9:$E$107,2,FALSE) ) ) ->  | O11: 3.416 | R11: =IF(TRIM(Q11)="", "", IF(VLOOKUP(Q11,'Footnotes list'!$D$9:$E$107,2,FALSE)=0,"",VLOOKUP(Q11,'Footnotes list'!$D$9:$E$107,2,FALSE) ) ) ->  | S11: 3.702 | V11: =IF(TRIM(U11)="", "", IF(VLOOKUP(U11,'Footnotes list'!$D$9:$E$107,2,FALSE)=0,"",VLOOKUP(U11,'Footnotes list'!$D$9:$E$107,2,FALSE) ) ) ->  | W11: 3.246839 | Z11: =IF(TRIM(Y11)="", "", IF(VLOOKUP(Y11,'Footnotes list'!$D$9:$E$107,2,FALSE)=0,"",VLOOKUP(Y11,'Footnotes list'!$D$9:$E$107,2,FALSE) ) ) ->  | AA11: =IF(ISNUMBER(W11), IF(ABS(W11-AVERAGE(G11, K11, O11,S11))>0.1*(W11+AVERAGE(G11, K11, O11,S11)),"Warning: there is a percentage difference higher than 20% between the reference year and the average of the previous 4 years","The percentage difference is below 20%"),"Info: voluntary cell is empty, if available please provide value") -> Warning: there is a percentage difference higher than 20% between the reference year and the average of the previous 4 years | AC11: =CONCATENATE(IF(ISNUMBER(S11), IF(ABS(S11-AVERAGE(G11, K11, O11,W11))>0.1*(S11+AVERAGE(G11, K11, O11,W11)),"Warning: there is a percentage difference higher than 20% between cell S11 and the average of the other 4 years ",""),"Info: voluntary cell S11 is empty, if available please provide value "), IF(ISNUMBER(O11), IF(ABS(O11-AVERAGE(G11, K11, S11,W11))>0.1*(O11+AVERAGE(G11, K11, S11,W11)),"Warning: there is a percentage difference higher than 20% between cell O11 and the average of the other 4 years",""),"Info: voluntary cell O11 is empty, if available please provide value ")) -> Warning: there is a percentage difference higher than 20% between cell O11 and the average of the other 4 years
A12: T | B12: W160601 | C12: COL | F12: Collection (Tonnes) | J12: =IF(TRIM(I12)="", "", IF(VLOOKUP(I12,'Footnotes list'!$D$9:$E$107,2,FALSE)=0,"",VLOOKUP(I12,'Footnotes list'!$D$9:$E$107,2,FALSE) ) ) ->  | K12: 2.868 | L12: E | N12: =IF(TRIM(M12)="", "", IF(VLOOKUP(M12,'Footnotes list'!$D$9:$E$107,2,FALSE)=0,"",VLOOKUP(M12,'Footnotes list'!$D$9:$E$107,2,FALSE) ) ) ->  | O12: 3.691 | R12: =IF(TRIM(Q12)="", "", IF(VLOOKUP(Q12,'Footnotes list'!$D$9:$E$107,2,FALSE)=0,"",VLOOKUP(Q12,'Footnotes list'!$D$9:$E$107,2,FALSE) ) ) ->  | S12: 3.924 | V12: =IF(TRIM(U12)="", "", IF(VLOOKUP(U12,'Footnotes list'!$D$9:$E$107,2,FALSE)=0,"",VLOOKUP(U12,'Footnotes list'!$D$9:$E$107,2,FALSE) ) ) ->  | W12: 2.92501 | Z12: =IF(TRIM(Y12)="", "", IF(VLOOKUP(Y12,'Footnotes list'!$D$9:$E$107,2,FALSE)=0,"",VLOOKUP(Y12,'Footnotes list'!$D$9:$E$107,2,FALSE) ) ) ->  | AA12: The percentage difference is below 20% | AC12: =CONCATENATE(IF(ISNUMBER(S12), IF(ABS(S12-AVERAGE(G12, K12, O12,W12))>0.1*(S12+AVERAGE(G12, K12, O12,W12)),"Warning: there is a percentage difference higher than 20% between cell S12 and the average of the other 4 years ",""),"Info: voluntary cell S12 is empty, if available please provide value "), IF(ISNUMBER(O12), IF(ABS(O12-AVERAGE(G12, K12, S12,W12))>0.1*(O12+AVERAGE(G12, K12, S12,W12)),"Warning: there is a percentage difference higher than 20% between cell O12 and the average of the other 4 years",""),"Info: voluntary cell O12 is empty, if available please provide value ")) -> Warning: there is a percentage difference higher than 20% between cell S12 and the average of the other 4 years
A13: PC | B13: W160601 | C13: COL | F13: Collection rate (%) | J13: =IF(TRIM(I13)="", "", IF(VLOOKUP(I13,'Footnotes list'!$D$9:$E$107,2,FALSE)=0,"",VLOOKUP(I13,'Footnotes list'!$D$9:$E$107,2,FALSE) ) ) ->  | K13: 57.558 | N13: =IF(TRIM(M13)="", "", IF(VLOOKUP(M13,'Footnotes list'!$D$9:$E$107,2,FALSE)=0,"",VLOOKUP(M13,'Footnotes list'!$D$9:$E$107,2,FALSE) ) ) ->  | O13: 74.899 | R13: =IF(TRIM(Q13)="", "", IF(VLOOKUP(Q13,'Footnotes list'!$D$9:$E$107,2,FALSE)=0,"",VLOOKUP(Q13,'Footnotes list'!$D$9:$E$107,2,FALSE) ) ) ->  | S13: 86.053 | V13: =IF(TRIM(U13)="", "", IF(VLOOKUP(U13,'Footnotes list'!$D$9:$E$107,2,FALSE)=0,"",VLOOKUP(U13,'Footnotes list'!$D$9:$E$107,2,FALSE) ) ) ->  | W13: =IF(OR(W12="",CONCATENATE(O11,S11,W11)=""),"",W12*100/AVERAGE(O11,S11,W11)) -> 84.66151766 | Z13: =IF(TRIM(Y13)="", "", IF(VLOOKUP(Y13,'Footnotes list'!$D$9:$E$107,2,FALSE)=0,"",VLOOKUP(Y13,'Footnotes list'!$D$9:$E$107,2,FALSE) ) ) ->  | AA13: The percentage difference is below 20% | AB13: =IF( ISNUMBER(W13), IF((W13>100),"Warning: the rate should be below 100, explanatory footnote required",""),"Info: voluntary cell is empty, if available please provide value") ->  | AC13: =CONCATENATE(IF(ISNUMBER(S13), IF(ABS(S13-AVERAGE(G13, K13, O13,W13))>0.1*(S13+AVERAGE(G13, K13, O13,W13)),"Warning: there is a percentage difference higher than 20% between cell S13 and the average of the other 4 years ",""),"Info: voluntary cell S13 is empty, if available please provide value "), IF(ISNUMBER(O13), IF(ABS(O13-AVERAGE(G13, K13, S13,W13))>0.1*(O13+AVERAGE(G13, K13, S13,W13)),"Warning: there is a percentage difference higher than 20% between cell O13 and the average of the other 4 years",""),"Info: voluntary cell O13 is empty, if available please provide value ")) -> 
A14: T | B14: W160602 | C14: MKT | E14: Ni-Cd Batteries (W160602) (*) | F14: Sales (Tonnes) | J14: =IF(TRIM(I14)="", "", IF(VLOOKUP(I14,'Footnotes list'!$D$9:$E$107,2,FALSE)=0,"",VLOOKUP(I14,'Footnotes list'!$D$9:$E$107,2,FALSE) ) ) ->  | K14: 2.698 | N14: =IF(TRIM(M14)="", "", IF(VLOOKUP(M14,'Footnotes list'!$D$9:$E$107,2,FALSE)=0,"",VLOOKUP(M14,'Footnotes list'!$D$9:$E$107,2,FALSE) ) ) ->  | O14: 1.448 | R14: =IF(TRIM(Q14)="", "", IF(VLOOKUP(Q14,'Footnotes list'!$D$9:$E$107,2,FALSE)=0,"",VLOOKUP(Q14,'Footnotes list'!$D$9:$E$107,2,FALSE) ) ) ->  | S14: 1.338 | V14: =IF(TRIM(U14)="", "", IF(VLOOKUP(U14,'Footnotes list'!$D$9:$E$107,2,FALSE)=0,"",VLOOKUP(U14,'Footnotes list'!$D$9:$E$107,2,FALSE) ) ) ->  | W14: 1.222934 | Z14: =IF(TRIM(Y14)="", "", IF(VLOOKUP(Y14,'Footnotes list'!$D$9:$E$107,2,FALSE)=0,"",VLOOKUP(Y14,'Footnotes list'!$D$9:$E$107,2,FALSE) ) ) ->  | AA14: Warning: there is a percentage difference higher than 20% between the reference year and the average of the previous 4 years | AC14: =CONCATENATE(IF(ISNUMBER(S14), IF(ABS(S14-AVERAGE(G14, K14, O14,W14))>0.1*(S14+AVERAGE(G14, K14, O14,W14)),"Warning: there is a percentage difference higher than 20% between cell S14 and the average of the other 4 years ",""),"Info: voluntary cell S14 is empty, if available please provide value "), IF(ISNUMBER(O14), IF(ABS(O14-AVERAGE(G14, K14, S14,W14))>0.1*(O14+AVERAGE(G14, K14, S14,W14)),"Warning: there is a percentage difference higher than 20% between cell O14 and the average of the other 4 years",""),"Info: voluntary cell O14 is empty, if available please provide value ")) -> Warning: there is a percentage difference higher than 20% between cell S14 and the average of the other 4 years
A15: T | B15: W160602 | C15: COL | F15: Collection (Tonnes) | J15: =IF(TRIM(I15)="", "", IF(VLOOKUP(I15,'Footnotes list'!$D$9:$E$107,2,FALSE)=0,"",VLOOKUP(I15,'Footnotes list'!$D$9:$E$107,2,FALSE) ) ) ->  | K15: 7.513 | L15: E | N15: =IF(TRIM(M15)="", "", IF(VLOOKUP(M15,'Footnotes list'!$D$9:$E$107,2,FALSE)=0,"",VLOOKUP(M15,'Footnotes list'!$D$9:$E$107,2,FALSE) ) ) ->  | O15: 9.671 | R15: =IF(TRIM(Q15)="", "", IF(VLOOKUP(Q15,'Footnotes list'!$D$9:$E$107,2,FALSE)=0,"",VLOOKUP(Q15,'Footnotes list'!$D$9:$E$107,2,FALSE) ) ) ->  | S15: 8.604 | V15: =IF(TRIM(U15)="", "", IF(VLOOKUP(U15,'Footnotes list'!$D$9:$E$107,2,FALSE)=0,"",VLOOKUP(U15,'Footnotes list'!$D$9:$E$107,2,FALSE) ) ) ->  | W15: 11.750472 | Z15: =IF(TRIM(Y15)="", "", IF(VLOOKUP(Y15,'Footnotes list'!$D$9:$E$107,2,FALSE)=0,"",VLOOKUP(Y15,'Footnotes list'!$D$9:$E$107,2,FALSE) ) ) ->  | AA15: Warning: there is a percentage difference higher than 20% between the reference year and the average of the previous 4 years | AC15: =CONCATENATE(IF(ISNUMBER(S15), IF(ABS(S15-AVERAGE(G15, K15, O15,W15))>0.1*(S15+AVERAGE(G15, K15, O15,W15)),"Warning: there is a percentage difference higher than 20% between cell S15 and the average of the other 4 years ",""),"Info: voluntary cell S15 is empty, if available please provide value "), IF(ISNUMBER(O15), IF(ABS(O15-AVERAGE(G15, K15, S15,W15))>0.1*(O15+AVERAGE(G15, K15, S15,W15)),"Warning: there is a percentage difference higher than 20% between cell O15 and the average of the other 4 years",""),"Info: voluntary cell O15 is empty, if available please provide value ")) -> 
A16: PC | B16: W160602 | C16: COL | F16: Collection rate (%) | J16: =IF(TRIM(I16)="", "", IF(VLOOKUP(I16,'Footnotes list'!$D$9:$E$107,2,FALSE)=0,"",VLOOKUP(I16,'Footnotes list'!$D$9:$E$107,2,FALSE) ) ) ->  | K16: 227.196 | M16: 3 | N16: =IF(TRIM(M16)="", "", IF(VLOOKUP(M16,'Footnotes list'!$D$9:$E$107,2,FALSE)=0,"",VLOOKUP(M16,'Footnotes list'!$D$9:$E$107,2,FALSE) ) ) -> The number of Ni-Cd batteries put on the market dropped over the last years but there are still Ni-Cd batteries collected | O16: 382.102 | Q16: 3 | R16: =IF(TRIM(Q16)="", "", IF(VLOOKUP(Q16,'Footnotes list'!$D$9:$E$107,2,FALSE)=0,"",VLOOKUP(Q16,'Footnotes list'!$D$9:$E$107,2,FALSE) ) ) -> The number of Ni-Cd batteries put on the market dropped over the last years but there are still Ni-Cd batteries collected | S16: 470.678 | U16: 3 | V16: =IF(TRIM(U16)="", "", IF(VLOOKUP(U16,'Footnotes list'!$D$9:$E$107,2,FALSE)=0,"",VLOOKUP(U16,'Footnotes list'!$D$9:$E$107,2,FALSE) ) ) -> The number of Ni-Cd batteries put on the market dropped over the last years but there are still Ni-Cd batteries collected | W16: =IF(OR(W15="",CONCATENATE(O14,S14,W14)=""),"",W15*100/AVERAGE(O14,S14,W14)) -> 879.3214356 | Y16: 3 | Z16: =IF(TRIM(Y16)="", "", IF(VLOOKUP(Y16,'Footnotes list'!$D$9:$E$107,2,FALSE)=0,"",VLOOKUP(Y16,'Footnotes list'!$D$9:$E$107,2,FALSE) ) ) -> The number of Ni-Cd batteries put on the market dropped over the last years but there are still Ni-Cd batteries collected | AA16: Warning: there is a percentage difference higher than 20% between the reference year and the average of the previous 4 years | AB16: =IF( ISNUMBER(W16), IF((W16>100),"Warning: the rate should be below 100, explanatory footnote required",""),"Info: voluntary cell is empty, if available please provide value") -> Warning: the rate should be below 100, explanatory footnote required | AC16: =CONCATENATE(IF(ISNUMBER(S16), IF(ABS(S16-AVERAGE(G16, K16, O16,W16))>0.1*(S16+AVERAGE(G16, K16, O16,W16)),"Warning: there is a percentage difference higher than 20% between cell S16 and the average of the other 4 years ",""),"Info: voluntary cell S16 is empty, if available please provide value "), IF(ISNUMBER(O16), IF(ABS(O16-AVERAGE(G16, K16, S16,W16))>0.1*(O16+AVERAGE(G16, K16, S16,W16)),"Warning: there is a percentage difference higher than 20% between cell O16 and the average of the other 4 years",""),"Info: voluntary cell O16 is empty, if available please provide value ")) -> Warning: there is a percentage difference higher than 20% between cell O16 and the average of the other 4 years
A17: T | B17: W160605 | C17: MKT | E17: Other batteries and accumulators (W160605) (*) | F17: Sales (Tonnes) | J17: =IF(TRIM(I17)="", "", IF(VLOOKUP(I17,'Footnotes list'!$D$9:$E$107,2,FALSE)=0,"",VLOOKUP(I17,'Footnotes list'!$D$9:$E$107,2,FALSE) ) ) ->  | K17: 191.41 | N17: =IF(TRIM(M17)="", "", IF(VLOOKUP(M17,'Footnotes list'!$D$9:$E$107,2,FALSE)=0,"",VLOOKUP(M17,'Footnotes list'!$D$9:$E$107,2,FALSE) ) ) ->  | O17: 204.465 | R17: =IF(TRIM(Q17)="", "", IF(VLOOKUP(Q17,'Footnotes list'!$D$9:$E$107,2,FALSE)=0,"",VLOOKUP(Q17,'Footnotes list'!$D$9:$E$107,2,FALSE) ) ) ->  | S17: 236.879 | V17: =IF(TRIM(U17)="", "", IF(VLOOKUP(U17,'Footnotes list'!$D$9:$E$107,2,FALSE)=0,"",VLOOKUP(U17,'Footnotes list'!$D$9:$E$107,2,FALSE) ) ) ->  | W17: 256.967702 | Z17: =IF(TRIM(Y17)="", "", IF(VLOOKUP(Y17,'Footnotes list'!$D$9:$E$107,2,FALSE)=0,"",VLOOKUP(Y17,'Footnotes list'!$D$9:$E$107,2,FALSE) ) ) ->  | AA17: The percentage difference is below 20% | AC17: =CONCATENATE(IF(ISNUMBER(S17), IF(ABS(S17-AVERAGE(G17, K17, O17,W17))>0.1*(S17+AVERAGE(G17, K17, O17,W17)),"Warning: there is a percentage difference higher than 20% between cell S17 and the average of the other 4 years ",""),"Info: voluntary cell S17 is empty, if available please provide value "), IF(ISNUMBER(O17), IF(ABS(O17-AVERAGE(G17, K17, S17,W17))>0.1*(O17+AVERAGE(G17, K17, S17,W17)),"Warning: there is a percentage difference higher than 20% between cell O17 and the average of the other 4 years",""),"Info: voluntary cell O17 is empty, if available please provide value ")) -> 
A18: T | B18: W160605 | C18: COL | F18: Collection (Tonnes) | J18: =IF(TRIM(I18)="", "", IF(VLOOKUP(I18,'Footnotes list'!$D$9:$E$107,2,FALSE)=0,"",VLOOKUP(I18,'Footnotes list'!$D$9:$E$107,2,FALSE) ) ) ->  | K18: 98.325 | L18: E | N18: =IF(TRIM(M18)="", "", IF(VLOOKUP(M18,'Footnotes list'!$D$9:$E$107,2,FALSE)=0,"",VLOOKUP(M18,'Footnotes list'!$D$9:$E$107,2,FALSE) ) ) ->  | O18: 126.561 | R18: =IF(TRIM(Q18)="", "", IF(VLOOKUP(Q18,'Footnotes list'!$D$9:$E$107,2,FALSE)=0,"",VLOOKUP(Q18,'Footnotes list'!$D$9:$E$107,2,FALSE) ) ) ->  | S18: 143.193 | V18: =IF(TRIM(U18)="", "", IF(VLOOKUP(U18,'Footnotes list'!$D$9:$E$107,2,FALSE)=0,"",VLOOKUP(U18,'Footnotes list'!$D$9:$E$107,2,FALSE) ) ) ->  | W18: 148.032407 | Z18: =IF(TRIM(Y18)="", "", IF(VLOOKUP(Y18,'Footnotes list'!$D$9:$E$107,2,FALSE)=0,"",VLOOKUP(Y18,'Footnotes list'!$D$9:$E$107,2,FALSE) ) ) ->  | AA18: The percentage difference is below 20% | AC18: =CONCATENATE(IF(ISNUMBER(S18), IF(ABS(S18-AVERAGE(G18, K18, O18,W18))>0.1*(S18+AVERAGE(G18, K18, O18,W18)),"Warning: there is a percentage difference higher than 20% between cell S18 and the average of the other 4 years ",""),"Info: voluntary cell S18 is empty, if available please provide value "), IF(ISNUMBER(O18), IF(ABS(O18-AVERAGE(G18, K18, S18,W18))>0.1*(O18+AVERAGE(G18, K18, S18,W18)),"Warning: there is a percentage difference higher than 20% between cell O18 and the average of the other 4 years",""),"Info: voluntary cell O18 is empty, if available please provide value ")) -> 
A19: PC | B19: W160605 | C19: COL | F19: Collection rate (%) | J19: =IF(TRIM(I19)="", "", IF(VLOOKUP(I19,'Footnotes list'!$D$9:$E$107,2,FALSE)=0,"",VLOOKUP(I19,'Footnotes list'!$D$9:$E$107,2,FALSE) ) ) ->  | K19: 54.201 | N19: =IF(TRIM(M19)="", "", IF(VLOOKUP(M19,'Footnotes list'!$D$9:$E$107,2,FALSE)=0,"",VLOOKUP(M19,'Footnotes list'!$D$9:$E$107,2,FALSE) ) ) ->  | O19: 65.05 | R19: =IF(TRIM(Q19)="", "", IF(VLOOKUP(Q19,'Footnotes list'!$D$9:$E$107,2,FALSE)=0,"",VLOOKUP(Q19,'Footnotes list'!$D$9:$E$107,2,FALSE) ) ) ->  | S19: 67.89 | V19: =IF(TRIM(U19)="", "", IF(VLOOKUP(U19,'Footnotes list'!$D$9:$E$107,2,FALSE)=0,"",VLOOKUP(U19,'Footnotes list'!$D$9:$E$107,2,FALSE) ) ) ->  | W19: =IF(OR(W18="",CONCATENATE(O17,S17,W17)=""),"",W18*100/AVERAGE(O17,S17,W17)) -> 63.59584405 | Z19: =IF(TRIM(Y19)="", "", IF(VLOOKUP(Y19,'Footnotes list'!$D$9:$E$107,2,FALSE)=0,"",VLOOKUP(Y19,'Footnotes list'!$D$9:$E$107,2,FALSE) ) ) ->  | AA19: The percentage difference is below 20% | AB19: =IF( ISNUMBER(W19), IF((W19>100),"Warning: the rate should be below 100, explanatory footnote required",""),"Info: voluntary cell is empty, if available please provide value") ->  | AC19: =CONCATENATE(IF(ISNUMBER(S19), IF(ABS(S19-AVERAGE(G19, K19, O19,W19))>0.1*(S19+AVERAGE(G19, K19, O19,W19)),"Warning: there is a percentage difference higher than 20% between cell S19 and the average of the other 4 years ",""),"Info: voluntary cell S19 is empty, if available please provide value "), IF(ISNUMBER(O19), IF(ABS(O19-AVERAGE(G19, K19, S19,W19))>0.1*(O19+AVERAGE(G19, K19, S19,W19)),"Warning: there is a percentage difference higher than 20% between cell O19 and the average of the other 4 years",""),"Info: voluntary cell O19 is empty, if available please provide value ")) -> 
E21: Notes:
E23: Cell shading:
E24: White: Data provision is mandatory.
E25: Dark grey: Pre-filled by Eurostat. Non-modifiable data. It appears only for information. If you need to change the non-modifiable data please contact Eurostat.
E26: Light grey: these cells usually contain formulas, but can be overwritten by the users as they are not locked; in case of prefilling, the formulas are substituted with the reported value.
E27: Light blue (cyan): Data provision is voluntary.
E28: Light orange: Footnotes (only to be filled-in when relevant)
E29: (*) The Commission encourages countries to provide voluntary data on the disaggregated amounts of Sales, Collection and Collection Rates for Lead (W160601), Nickel-Cadmium (W160602) and other batteries and accumulators (W160605); Eurostat acknowledges that the quality of voluntary data is not as high as expected for mandatory data.

Sheet Table_1 (Prefilling) (hidden)
E4: TABLE 1: PREFILLING
E5: Country: | F5: ='GETTING STARTED'!G9 -> LU | G5: =IF('GETTING STARTED'!E9="","",'GETTING STARTED'!E9) -> Luxembourg
E6: Reference year: | F6: =IF('GETTING STARTED'!E10="","",'GETTING STARTED'!E10) -> 2020
G7: =CONCATENATE((F6-4),CHAR(10),"(not editable)") -> 2016 (not editable) | H7: Standard footnotes | I7: Explanatory footnote | K7: =CONCATENATE((F6-3),CHAR(10),"(not editable)") -> 2017 (not editable) | L7: Standard footnotes | M7: Explanatory footnote | O7: =F6-2 -> 2018 | P7: Standard footnotes | Q7: Explanatory footnote | S7: =F6-1 -> 2019 | T7: Standard footnotes | U7: Explanatory footnote | W7: =F6 -> 2020 | X7: Standard footnotes | Y7: Explanatory footnote
A8: T | B8: W1606B | C8: MKT | E8: Portable batteries and accumulators (W1606B) | F8: Sales (Tonnes) | G8: 196.05 | K8: 200.67 | O8: 209.329 | S8: 241.919
A9: T | B9: W1606B | C9: COL | F9: Collection (Tonnes) | G9: 113.95 | K9: 108.706 | O9: 139.923 | S9: 155.721
A10: PC | B10: W1606B | C10: COL | F10: Collection rate (%) | G10: 63.37 | J10: 14@rounding error | K10: 57.305 | N10: The data for 2015 and 2016 only has a precision of 1 decimal. Since 2017 Luxembourg uses a precision of 3 decimals. | O10: 69.262 | R10: The data for 2015 and 2016 only has a precision of 1 decimal. Since 2017 Luxembourg uses a precision of 3 decimals. | S10: 71.66
A11: T | B11: W160601 | C11: MKT | E11: Lead batteries (W160601) (*) | F11: Sales (Tonnes) | K11: 6.562 | O11: 3.416 | S11: 3.702
A12: T | B12: W160601 | C12: COL | F12: Collection (Tonnes) | K12: 2.868 | L12: E | O12: 3.691 | S12: 3.924
A13: PC | B13: W160601 | C13: COL | F13: Collection rate (%) | K13: 57.558 | O13: 74.899 | S13: 86.053
A14: T | B14: W160602 | C14: MKT | E14: Ni-Cd Batteries (W160602) (*) | F14: Sales (Tonnes) | K14: 2.698 | O14: 1.448 | S14: 1.338
A15: T | B15: W160602 | C15: COL | F15: Collection (Tonnes) | K15: 7.513 | L15: E | O15: 9.671 | S15: 8.604
A16: PC | B16: W160602 | C16: COL | F16: Collection rate (%) | K16: 227.196 | N16: The number of Ni-Cd batteries put on the market dropped over the last years | O16: 382.102 | R16: The number of Ni-Cd batteries put on the market dropped over the last years | S16: 470.678 | V16: The number of Ni-Cd batteries put on the market dropped over the last years
A17: T | B17: W160605 | C17: MKT | E17: Other batteries and accumulators (W160605) (*) | F17: Sales (Tonnes) | K17: 191.41 | O17: 204.465 | S17: 236.879
A18: T | B18: W160605 | C18: COL | F18: Collection (Tonnes) | K18: 98.325 | L18: E | O18: 126.561 | S18: 143.193
A19: PC | B19: W160605 | C19: COL | F19: Collection rate (%) | K19: 54.201 | O19: 65.05 | S19: 67.89
E21: Notes:
E23: Cell shading:
E24: White: Data provision is mandatory.
E25: Dark grey: Pre-filled by Eurostat. Non-modifiable data. It appears only for information. If you need to change the non-modifiable data please contact Eurostat.
E26: Light grey: these cells usually contain formulas, but can be overwritten by the users as they are not locked; in case of prefilling, the formulas are substituted with the reported value.
E27: Light blue (cyan): Data provision is voluntary.
E28: Light orange: Footnotes (only to be filled-in when relevant)
E29: (*) The Commission encourages countries to provide voluntary data on the disaggregated amounts of Sales, Collection and Collection Rates for Lead (W160601), Nickel-Cadmium (W160602) and other batteries and accumulators (W160605); Eurostat acknowledges that the quality of voluntary data is not as high as expected for mandatory data.

Sheet Table_2
F4: TABLE 2: Monitoring Compliance for Directive 2006/66/EC on batteries and accumulators and waste batteries and accumulators Recyling Efficiencies of the recycling processes on waste batteries and accumulators according to REG 493/2012 | S4: PLAUSIBILITY WARNINGS
E5: Country: | F5: ='GETTING STARTED'!G9 -> LU | G5: =IF('GETTING STARTED'!E9="","",'GETTING STARTED'!E9) -> Luxembourg
E6: Reference year: | F6: =IF('GETTING STARTED'!E10="","",'GETTING STARTED'!E10) -> 2020
G7: =F6-2 -> 2018 | H7: Standard footnotes | I7: Explanatory footnote | K7: =F6-1 -> 2019 | L7: Standard footnotes | M7: Explanatory footnote | O7: =F6 -> 2020 | P7: Standard footnotes | Q7: Explanatory footnote | S7: Time series analysis against reference year | T7: Reference year analysis | U7: Previous years
A8: T | B8: W160601 | C8: RCY_INP | E8: Lead batteries (W160601) | F8: Minput, total (Tonnes) | G8: 1842.041 | J8: =IF(TRIM(I8)="", "", IF(VLOOKUP(I8,'Footnotes list'!$D$9:$E$107,2,FALSE)=0,"",VLOOKUP(I8,'Footnotes list'!$D$9:$E$107,2,FALSE) ) ) ->  | K8: 1807.733 | N8: =IF(TRIM(M8)="", "", IF(VLOOKUP(M8,'Footnotes list'!$D$9:$E$107,2,FALSE)=0,"",VLOOKUP(M8,'Footnotes list'!$D$9:$E$107,2,FALSE) ) ) ->  | O8: 1603.513 | R8: =IF(TRIM(Q8)="", "", IF(VLOOKUP(Q8,'Footnotes list'!$D$9:$E$107,2,FALSE)=0,"",VLOOKUP(Q8,'Footnotes list'!$D$9:$E$107,2,FALSE) ) ) ->  | S8: =IF(ISNUMBER(O8), IF(ABS(O8-AVERAGE(G8,K8))>0.1*(O8+AVERAGE(G8,K8)),"Warning: there is a percentage difference higher than 20% between the reference year and the average of the previous 2 years","The percentage difference is below 20%"),"Warning: mandatory cell is empty, please provide value or explanation") -> The percentage difference is below 20% | U8: =CONCATENATE(IF(ISNUMBER(G8),IF(ABS(G8-AVERAGE(K8,O8))>0.1*(G8+AVERAGE(K8,O8)),"Warning: there is a percentage difference higher than 20% between column G and the average of the other 2 years ",""),"Warning: mandatory cell in column G is empty, please provide value or explanation "),IF(ISNUMBER(K8),IF(ABS(K8-AVERAGE(G8,O8))>0.1*(K8+AVERAGE(G8,O8)),"Warning: there is a percentage difference higher than 20% between column K and the average of the other 2 years ",""),"Warning: mandatory cell in column K is empty, please provide value or explanation ")) -> 
A9: T | B9: W160601 | C9: RCY | F9: Moutput, total (Tonnes) | G9: 1688.393 | J9: =IF(TRIM(I9)="", "", IF(VLOOKUP(I9,'Footnotes list'!$D$9:$E$107,2,FALSE)=0,"",VLOOKUP(I9,'Footnotes list'!$D$9:$E$107,2,FALSE) ) ) ->  | K9: 1543.791 | N9: =IF(TRIM(M9)="", "", IF(VLOOKUP(M9,'Footnotes list'!$D$9:$E$107,2,FALSE)=0,"",VLOOKUP(M9,'Footnotes list'!$D$9:$E$107,2,FALSE) ) ) ->  | O9: 1364.826492 | R9: =IF(TRIM(Q9)="", "", IF(VLOOKUP(Q9,'Footnotes list'!$D$9:$E$107,2,FALSE)=0,"",VLOOKUP(Q9,'Footnotes list'!$D$9:$E$107,2,FALSE) ) ) ->  | S9: =IF(ISNUMBER(O9), IF(ABS(O9-AVERAGE(G9,K9))>0.1*(O9+AVERAGE(G9,K9)),"Warning: there is a percentage difference higher than 20% between the reference year and the average of the previous 2 years","The percentage difference is below 20%"),"Warning: mandatory cell is empty, please provide value or explanation") -> The percentage difference is below 20% | U9: =CONCATENATE(IF(ISNUMBER(G9),IF(ABS(G9-AVERAGE(K9,O9))>0.1*(G9+AVERAGE(K9,O9)),"Warning: there is a percentage difference higher than 20% between column G and the average of the other 2 years ",""),"Warning: mandatory cell in column G is empty, please provide value or explanation "),IF(ISNUMBER(K9),IF(ABS(K9-AVERAGE(G9,O9))>0.1*(K9+AVERAGE(G9,O9)),"Warning: there is a percentage difference higher than 20% between column K and the average of the other 2 years ",""),"Warning: mandatory cell in column K is empty, please provide value or explanation ")) -> 
A10: PC | B10: W160601 | C10: RCY | F10: Recycling efficiency% | G10: 91.659 | J10: =IF(TRIM(I10)="", "", IF(VLOOKUP(I10,'Footnotes list'!$D$9:$E$107,2,FALSE)=0,"",VLOOKUP(I10,'Footnotes list'!$D$9:$E$107,2,FALSE) ) ) ->  | K10: 85.399 | N10: =IF(TRIM(M10)="", "", IF(VLOOKUP(M10,'Footnotes list'!$D$9:$E$107,2,FALSE)=0,"",VLOOKUP(M10,'Footnotes list'!$D$9:$E$107,2,FALSE) ) ) ->  | O10: =IF(OR(TRIM(O8)="", TRIM(O9)=""), "", O9*100/O8) -> 85.11477562 | R10: =IF(TRIM(Q10)="", "", IF(VLOOKUP(Q10,'Footnotes list'!$D$9:$E$107,2,FALSE)=0,"",VLOOKUP(Q10,'Footnotes list'!$D$9:$E$107,2,FALSE) ) ) ->  | S10: The percentage difference is below 20% | T10: =IF( ISNUMBER(O10), IF((O10<65),"Warning: please check reported values, the target of 65% is not reached",IF((O10>100),"Warning: the rate must be below 100, explanatory footnote required", "The country has reached 65% in recycling efficiency")),"Warning: mandatory cell is empty, please provide value") -> The country has reached 65% in recycling efficiency
A11: T | B11: W160601PB | C11: RCY_INP | E11: Lead content of lead batteries (W160601PB) | F11: Minput, Pb (Tonnes) | G11: 1166.107 | I11: 4 | J11: =IF(TRIM(I11)="", "", IF(VLOOKUP(I11,'Footnotes list'!$D$9:$E$107,2,FALSE)=0,"",VLOOKUP(I11,'Footnotes list'!$D$9:$E$107,2,FALSE) ) ) -> Only the rate of recycling is known from the recyclers. The lead respectively cadmium content has been estimated. | K11: 1144.388 | N11: =IF(TRIM(M11)="", "", IF(VLOOKUP(M11,'Footnotes list'!$D$9:$E$107,2,FALSE)=0,"",VLOOKUP(M11,'Footnotes list'!$D$9:$E$107,2,FALSE) ) ) ->  | O11: 1008.533773 | R11: =IF(TRIM(Q11)="", "", IF(VLOOKUP(Q11,'Footnotes list'!$D$9:$E$107,2,FALSE)=0,"",VLOOKUP(Q11,'Footnotes list'!$D$9:$E$107,2,FALSE) ) ) ->  | S11: The percentage difference is below 20%
A12: T | B12: W160601PB | C12: RCY | F12: Moutput, Pb (Tonnes) | G12: 1100.603 | I12: 4 | J12: =IF(TRIM(I12)="", "", IF(VLOOKUP(I12,'Footnotes list'!$D$9:$E$107,2,FALSE)=0,"",VLOOKUP(I12,'Footnotes list'!$D$9:$E$107,2,FALSE) ) ) -> Only the rate of recycling is known from the recyclers. The lead respectively cadmium content has been estimated. | K12: 1116.167 | N12: =IF(TRIM(M12)="", "", IF(VLOOKUP(M12,'Footnotes list'!$D$9:$E$107,2,FALSE)=0,"",VLOOKUP(M12,'Footnotes list'!$D$9:$E$107,2,FALSE) ) ) ->  | O12: 983.6352128 | R12: =IF(TRIM(Q12)="", "", IF(VLOOKUP(Q12,'Footnotes list'!$D$9:$E$107,2,FALSE)=0,"",VLOOKUP(Q12,'Footnotes list'!$D$9:$E$107,2,FALSE) ) ) ->  | S12: The percentage difference is below 20%
A13: PC | B13: W160601PB | C13: RCY | F13: Rate of recycled lead content (degree of recycled Pb)% | G13: 94.383 | I13: 4 | J13: =IF(TRIM(I13)="", "", IF(VLOOKUP(I13,'Footnotes list'!$D$9:$E$107,2,FALSE)=0,"",VLOOKUP(I13,'Footnotes list'!$D$9:$E$107,2,FALSE) ) ) -> Only the rate of recycling is known from the recyclers. The lead respectively cadmium content has been estimated. | K13: 97.534 | N13: =IF(TRIM(M13)="", "", IF(VLOOKUP(M13,'Footnotes list'!$D$9:$E$107,2,FALSE)=0,"",VLOOKUP(M13,'Footnotes list'!$D$9:$E$107,2,FALSE) ) ) ->  | O13: =IF(OR(TRIM(O11)="", TRIM(O12)=""), "", O12*100/O11) -> 97.53121206 | R13: =IF(TRIM(Q13)="", "", IF(VLOOKUP(Q13,'Footnotes list'!$D$9:$E$107,2,FALSE)=0,"",VLOOKUP(Q13,'Footnotes list'!$D$9:$E$107,2,FALSE) ) ) ->  | S13: The percentage difference is below 20% | T13: =IF( ISNUMBER(O13), IF((O13>100),"Warning: the rate must be below 100, explanatory footnote required",""),"Warning: mandatory cell is empty, please provide value") -> 
A14: T | B14: W160602 | C14: RCY_INP | E14: Ni-Cd Batteries (W160602) | F14: Minput, total (Tonnes) | G14: 14.042 | J14: =IF(TRIM(I14)="", "", IF(VLOOKUP(I14,'Footnotes list'!$D$9:$E$107,2,FALSE)=0,"",VLOOKUP(I14,'Footnotes list'!$D$9:$E$107,2,FALSE) ) ) ->  | K14: 16.642 | N14: =IF(TRIM(M14)="", "", IF(VLOOKUP(M14,'Footnotes list'!$D$9:$E$107,2,FALSE)=0,"",VLOOKUP(M14,'Footnotes list'!$D$9:$E$107,2,FALSE) ) ) ->  | O14: 15.643 | R14: =IF(TRIM(Q14)="", "", IF(VLOOKUP(Q14,'Footnotes list'!$D$9:$E$107,2,FALSE)=0,"",VLOOKUP(Q14,'Footnotes list'!$D$9:$E$107,2,FALSE) ) ) ->  | S14: The percentage difference is below 20%
A15: T | B15: W160602 | C15: RCY | F15: Moutput, total (Tonnes) | G15: 11.33 | J15: =IF(TRIM(I15)="", "", IF(VLOOKUP(I15,'Footnotes list'!$D$9:$E$107,2,FALSE)=0,"",VLOOKUP(I15,'Footnotes list'!$D$9:$E$107,2,FALSE) ) ) ->  | K15: 13.727 | N15: =IF(TRIM(M15)="", "", IF(VLOOKUP(M15,'Footnotes list'!$D$9:$E$107,2,FALSE)=0,"",VLOOKUP(M15,'Footnotes list'!$D$9:$E$107,2,FALSE) ) ) ->  | O15: 12.814105 | R15: =IF(TRIM(Q15)="", "", IF(VLOOKUP(Q15,'Footnotes list'!$D$9:$E$107,2,FALSE)=0,"",VLOOKUP(Q15,'Footnotes list'!$D$9:$E$107,2,FALSE) ) ) ->  | S15: The percentage difference is below 20%
A16: PC | B16: W160602 | C16: RCY | F16: Recycling efficiency% | G16: 80.69 | J16: =IF(TRIM(I16)="", "", IF(VLOOKUP(I16,'Footnotes list'!$D$9:$E$107,2,FALSE)=0,"",VLOOKUP(I16,'Footnotes list'!$D$9:$E$107,2,FALSE) ) ) ->  | K16: 82.487 | N16: =IF(TRIM(M16)="", "", IF(VLOOKUP(M16,'Footnotes list'!$D$9:$E$107,2,FALSE)=0,"",VLOOKUP(M16,'Footnotes list'!$D$9:$E$107,2,FALSE) ) ) ->  | O16: =IF(OR(TRIM(O14)="", TRIM(O15)=""), "", O15*100/O14) -> 81.91590488 | R16: =IF(TRIM(Q16)="", "", IF(VLOOKUP(Q16,'Footnotes list'!$D$9:$E$107,2,FALSE)=0,"",VLOOKUP(Q16,'Footnotes list'!$D$9:$E$107,2,FALSE) ) ) ->  | S16: The percentage difference is below 20% | T16: =IF( ISNUMBER(O16), IF((O16<75),"Warning: please check reported values, the target of 75% is not reached",IF((O16>100),"Warning: the rate must be below 100, explanatory footnote required", "The country has reached 75% in recycling efficiency")),"Warning: mandatory cell is empty, please provide value") -> The country has reached 75% in recycling efficiency
A17: T | B17: W160602CD | C17: RCY_INP | E17: Cadmium content of cadmium batteries (W160602CD) | F17: Minput, Cd (Tonnes) | G17: 2.066 | I17: 4 | J17: =IF(TRIM(I17)="", "", IF(VLOOKUP(I17,'Footnotes list'!$D$9:$E$107,2,FALSE)=0,"",VLOOKUP(I17,'Footnotes list'!$D$9:$E$107,2,FALSE) ) ) -> Only the rate of recycling is known from the recyclers. The lead respectively cadmium content has been estimated. | K17: 2.449 | N17: =IF(TRIM(M17)="", "", IF(VLOOKUP(M17,'Footnotes list'!$D$9:$E$107,2,FALSE)=0,"",VLOOKUP(M17,'Footnotes list'!$D$9:$E$107,2,FALSE) ) ) ->  | O17: 2.26 | R17: =IF(TRIM(Q17)="", "", IF(VLOOKUP(Q17,'Footnotes list'!$D$9:$E$107,2,FALSE)=0,"",VLOOKUP(Q17,'Footnotes list'!$D$9:$E$107,2,FALSE) ) ) ->  | S17: The percentage difference is below 20%
A18: T | B18: W160602CD | C18: RCY | F18: Moutput, Cd (Tonnes) | G18: 1.027 | I18: 4 | J18: =IF(TRIM(I18)="", "", IF(VLOOKUP(I18,'Footnotes list'!$D$9:$E$107,2,FALSE)=0,"",VLOOKUP(I18,'Footnotes list'!$D$9:$E$107,2,FALSE) ) ) -> Only the rate of recycling is known from the recyclers. The lead respectively cadmium content has been estimated. | K18: 1.804 | N18: =IF(TRIM(M18)="", "", IF(VLOOKUP(M18,'Footnotes list'!$D$9:$E$107,2,FALSE)=0,"",VLOOKUP(M18,'Footnotes list'!$D$9:$E$107,2,FALSE) ) ) ->  | O18: 1.048 | R18: =IF(TRIM(Q18)="", "", IF(VLOOKUP(Q18,'Footnotes list'!$D$9:$E$107,2,FALSE)=0,"",VLOOKUP(Q18,'Footnotes list'!$D$9:$E$107,2,FALSE) ) ) ->  | S18: Warning: there is a percentage difference higher than 20% between the reference year and the average of the previous 2 years | U18: Warning: there is a percentage difference higher than 20% between column G and the average of the other 2 years Warning: there is a percentage difference higher than 20% between column K and the average of the other 2 years
A19: PC | B19: W160602CD | C19: RCY | F19: Rate of recycled cadmium content (degree of recycled Cd)% | G19: 49.701 | I19: 4 | J19: =IF(TRIM(I19)="", "", IF(VLOOKUP(I19,'Footnotes list'!$D$9:$E$107,2,FALSE)=0,"",VLOOKUP(I19,'Footnotes list'!$D$9:$E$107,2,FALSE) ) ) -> Only the rate of recycling is known from the recyclers. The lead respectively cadmium content has been estimated. | K19: 73.663 | N19: =IF(TRIM(M19)="", "", IF(VLOOKUP(M19,'Footnotes list'!$D$9:$E$107,2,FALSE)=0,"",VLOOKUP(M19,'Footnotes list'!$D$9:$E$107,2,FALSE) ) ) ->  | O19: =IF(OR(TRIM(O17)="", TRIM(O18)=""), "", O18*100/O17) -> 46.37168142 | R19: =IF(TRIM(Q19)="", "", IF(VLOOKUP(Q19,'Footnotes list'!$D$9:$E$107,2,FALSE)=0,"",VLOOKUP(Q19,'Footnotes list'!$D$9:$E$107,2,FALSE) ) ) ->  | S19: Warning: there is a percentage difference higher than 20% between the reference year and the average of the previous 2 years | T19: =IF( ISNUMBER(O19), IF((O19>100),"Warning: the rate must be below 100, explanatory footnote required",""),"Warning: mandatory cell is empty, please provide value") ->  | U19: Warning: there is a percentage difference higher than 20% between column K and the average of the other 2 years
A20: T | B20: W160605 | C20: RCY_INP | E20: Other batteries and accumulators (W160605) | F20: Minput, total (Tonnes) | G20: 126.183 | J20: =IF(TRIM(I20)="", "", IF(VLOOKUP(I20,'Footnotes list'!$D$9:$E$107,2,FALSE)=0,"",VLOOKUP(I20,'Footnotes list'!$D$9:$E$107,2,FALSE) ) ) ->  | K20: 146.081 | N20: =IF(TRIM(M20)="", "", IF(VLOOKUP(M20,'Footnotes list'!$D$9:$E$107,2,FALSE)=0,"",VLOOKUP(M20,'Footnotes list'!$D$9:$E$107,2,FALSE) ) ) ->  | O20: 137.647 | R20: =IF(TRIM(Q20)="", "", IF(VLOOKUP(Q20,'Footnotes list'!$D$9:$E$107,2,FALSE)=0,"",VLOOKUP(Q20,'Footnotes list'!$D$9:$E$107,2,FALSE) ) ) ->  | S20: The percentage difference is below 20%
A21: T | B21: W160605 | C21: RCY | F21: Moutput, total (Tonnes) | G21: 72.89 | J21: =IF(TRIM(I21)="", "", IF(VLOOKUP(I21,'Footnotes list'!$D$9:$E$107,2,FALSE)=0,"",VLOOKUP(I21,'Footnotes list'!$D$9:$E$107,2,FALSE) ) ) ->  | K21: 86.289 | N21: =IF(TRIM(M21)="", "", IF(VLOOKUP(M21,'Footnotes list'!$D$9:$E$107,2,FALSE)=0,"",VLOOKUP(M21,'Footnotes list'!$D$9:$E$107,2,FALSE) ) ) ->  | O21: 76.016336 | R21: =IF(TRIM(Q21)="", "", IF(VLOOKUP(Q21,'Footnotes list'!$D$9:$E$107,2,FALSE)=0,"",VLOOKUP(Q21,'Footnotes list'!$D$9:$E$107,2,FALSE) ) ) ->  | S21: The percentage difference is below 20%
A22: PC | B22: W160605 | C22: RCY | F22: Recycling efficiency% | G22: 57.766 | J22: =IF(TRIM(I22)="", "", IF(VLOOKUP(I22,'Footnotes list'!$D$9:$E$107,2,FALSE)=0,"",VLOOKUP(I22,'Footnotes list'!$D$9:$E$107,2,FALSE) ) ) ->  | K22: 59.069 | N22: =IF(TRIM(M22)="", "", IF(VLOOKUP(M22,'Footnotes list'!$D$9:$E$107,2,FALSE)=0,"",VLOOKUP(M22,'Footnotes list'!$D$9:$E$107,2,FALSE) ) ) ->  | O22: =IF(OR(TRIM(O20)="", TRIM(O21)=""), "", O21*100/O20) -> 55.22556685 | R22: =IF(TRIM(Q22)="", "", IF(VLOOKUP(Q22,'Footnotes list'!$D$9:$E$107,2,FALSE)=0,"",VLOOKUP(Q22,'Footnotes list'!$D$9:$E$107,2,FALSE) ) ) ->  | S22: The percentage difference is below 20% | T22: =IF( ISNUMBER(O22), IF((O22<50),"Warning: please check reported values, the target of 50% is not reached",IF((O22>100),"Warning: the rate must be below 100, explanatory footnote required", "The country has reached 50% in in recycling efficiency")),"Warning: mandatory cell is empty, please provide value") -> The country has reached 50% in in recycling efficiency
E24: Notes:
E26: Cell shading:
E27: White: Data provision is mandatory.
E28: Light grey: these cells usually contain formulas, but can be overwritten by the users as they are not locked; in case of prefilling, the formulas are substituted with the reported value.
E29: Light orange: Footnotes (only to be filled-in when relevant)

Sheet Table_2 (Prefilling) (hidden)
E4: TABLE 2: PRE-FILLING
E5: Country: | F5: ='GETTING STARTED'!G9 -> LU | G5: =IF('GETTING STARTED'!E9="","",'GETTING STARTED'!E9) -> Luxembourg
E6: Reference year: | F6: =IF('GETTING STARTED'!E10="","",'GETTING STARTED'!E10) -> 2020
G7: =F6-2 -> 2018 | H7: Standard footnotes | I7: Explanatory footnote | K7: =F6-1 -> 2019 | L7: Standard footnotes | M7: Explanatory footnote | O7: =F6 -> 2020 | P7: Standard footnotes | Q7: Explanatory footnote
A8: T | B8: W160601 | C8: RCY_INP | E8: Lead batteries (W160601) | F8: Minput, total (Tonnes) | G8: 1 842.0410 | K8: 1 807.7330
A9: T | B9: W160601 | C9: RCY | F9: Moutput, total (Tonnes) | G9: 1 688.3930 | K9: 1 543.7910
A10: PC | B10: W160601 | C10: RCY | F10: Recycling efficiency% | G10: 91.659 | K10: 85.399
A11: T | B11: W160601PB | C11: RCY_INP | E11: Lead content of lead batteries (W160601PB) | F11: Minput, Pb (Tonnes) | G11: 1 166.1070 | J11: Only the rate of recycling is known from the recyclers. The lead respectively cadmium content has been estimated. | K11: 1 144.3880
A12: T | B12: W160601PB | C12: RCY | F12: Moutput, Pb (Tonnes) | G12: 1 100.6030 | J12: Only the rate of recycling is known from the recyclers. The lead respectively cadmium content has been estimated. | K12: 1 116.1670
A13: PC | B13: W160601PB | C13: RCY | F13: Rate of recycled lead content (degree of recycled Pb)% | G13: 94.383 | J13: Only the rate of recycling is known from the recyclers. The lead respectively cadmium content has been estimated. | K13: 97.534
A14: T | B14: W160602 | C14: RCY_INP | E14: Ni-Cd Batteries (W160602) | F14: Minput, total (Tonnes) | G14: 14.042 | K14: 16.642
A15: T | B15: W160602 | C15: RCY | F15: Moutput, total (Tonnes) | G15: 11.33 | K15: 13.727
A16: PC | B16: W160602 | C16: RCY | F16: Recycling efficiency% | G16: 80.69 | K16: 82.487
A17: T | B17: W160602CD | C17: RCY_INP | E17: Cadmium content of cadmium batteries (W160602CD) | F17: Minput, Cd (Tonnes) | G17: 2.066 | J17: Only the rate of recycling is known from the recyclers. The lead respectively cadmium content has been estimated. | K17: 2.449
A18: T | B18: W160602CD | C18: RCY | F18: Moutput, Cd (Tonnes) | G18: 1.027 | J18: Only the rate of recycling is known from the recyclers. The lead respectively cadmium content has been estimated. | K18: 1.804
A19: PC | B19: W160602CD | C19: RCY | F19: Rate of recycled cadmium content (degree of recycled Cd)% | G19: 49.701 | J19: Only the rate of recycling is known from the recyclers. The lead respectively cadmium content has been estimated. | K19: 73.663
A20: T | B20: W160605 | C20: RCY_INP | E20: Other batteries and accumulators (W160605) | F20: Minput, total (Tonnes) | G20: 126.183 | K20: 146.081
A21: T | B21: W160605 | C21: RCY | F21: Moutput, total (Tonnes) | G21: 72.89 | K21: 86.289
A22: PC | B22: W160605 | C22: RCY | F22: Recycling efficiency% | G22: 57.766 | K22: 59.069
E24: Notes:
E26: Cell shading:
E27: White: Data provision is mandatory.
E28: Light grey: these cells usually contain formulas, but can be overwritten by the users as they are not locked; in case of prefilling, the formulas are substituted with the reported value.
E29: Light orange: Footnotes (only to be filled-in when relevant)

Sheet VoluntaryReporting
C2: Special note for the attention of the reporting officer: This voluntary sheet is treated as confidential and will only be shared with DG ENV, DG JRC and companies collaborating with the Commission under specific contracts, for data validation and research purposes. The objective of the voluntary reporting is focused on: - diminish the validation and investigation burden on the country whenever there is a peculiar situation that prevents countries to ship batteries waste on a yearly basis, - to help the Commission to analyse the situations in which countries are not receiving from recyclers settled abroad the figures on their amounts of recycled batteries and their recycling rates (in this case, it is recommended to provide the ANNEX IV, V and VI sheets from the recyclers in the quality report). In addition to what countries are already providing in the QRs, Eurostat encourages countries to provide any data and information available in this sheet. The voluntary sheet can be filled in and transmitted at any time. It is not necessary to fill in this sheet by 30 June (collection deadline). Once the voluntary sheet is compiled, it is strongly recommended that the country submit the questionnaire via eDAMIS, so that Eurostat can analyse the information and then report to the Commission whenever requested This sheet is divide in two sections: - section 1 is devoted for the voluntary reporting, in structured way, on stocks, shipments and landfilling, as well as additional descriptive textual information - section 2 is devoted for specifid topics addressed in JRC researches. In the event that these data (or part of it) are judged of high quality, Eurostat will contact the reporting officer asking for permission to publish parts of these information (e.g. as metadata). Only the finally agreed parts may be published.
B3: Country: | C3: Section 1: voluntary declarations on stocks, shipments and landfilling
B4: =CONCATENATE('GETTING STARTED'!E9," ",'GETTING STARTED'!G9) -> Luxembourg LU | C4: Unit: Tonnes | D4: Voluntary table 3: Declaration of stocks levels (opening at 1.1.Year), shipped for treatment, collected stocks and landfilled materials arising from batteries waste processing in the reference year per battery type in the country
C5: Year | D5: 2016 | H5: 2017 | L5: 2018 | P5: 2019 | T5: 2020 | X5: 2021
B6: waste code | C6: type of battery | D6: Stocks (open) | E6: Shipped for treatment | F6: Collected stocks | G6: Landfilling | H6: Stocks (open) | I6: Shipped for treatment | J6: Collected stocks | K6: Landfilling | L6: Stocks (open) | M6: Shipped for treatment | N6: Collected stocks | O6: Landfilling | P6: Stocks (open) | Q6: Shipped for treatment | R6: Collected stocks | S6: Landfilling | T6: Stocks (open) | U6: Shipped for treatment | V6: Collected stocks | W6: Landfilling | X6: Stock (open)
B7: W160601 | C7: Lead batteries | H7: =D7-E7+F7-G7 -> 0 | L7: =H7-I7+J7-K7 -> 0 | P7: =L7-M7+N7-O7 -> 0 | T7: =P7-Q7+R7-S7 -> 0
B8: W160601PB | C8: Lead content of lead batteries | H8: =D8-E8+F8-G8 -> 0 | L8: 0 | P8: 0 | T8: 0
B9: W160602 | C9: Ni-Cd Batteries | H9: 0 | L9: 0 | P9: 0 | T9: 0
B10: W160602CD | C10: Cadmium content of cadmium batteries | H10: 0 | L10: 0 | P10: 0 | T10: 0
B11: W160605 | C11: Other batteries and accumulators | H11: 0 | L11: 0 | P11: 0 | T11: 0
B12: waste code | C12: type of battery | D12: Further explanations on the data reported above (if the data are considered for estimations in the table 2 reporting, if the amounts are arising from estimations or supported by official records, if further disaggregation is available...)
B13: W160601 | C13: Lead batteries
B14: W160601PB | C14: Lead content of lead batteries
B15: W160602 | C15: Ni-Cd Batteries
B16: W160602CD | C16: Cadmium content of cadmium batteries
B17: W160605 | C17: Other batteries and accumulators
C18: Section 2: JRC questions on Batteries data collection 2022
C19: The JRC (Joint Research Centre) of the European Commission is working to provide scientific evidence to the Battery Regulation Proposal COM(798)2020. In particular, JRC provides – among the others – support on the Article 57 on recycling efficiency and material recovery level to provide harmonized calculation rules for all the batteries (PbA, NiCd and others, Li-ion). At this scope, JRC is interested in learning more on the reporting practices of the Member States (MS), with the following questions:
B20: Which are the waste codes used (from the European Waste Catalogue) to label exported black mass(es)?
B21: Classification of slag as a product or a waste currently depends on MSs. Would this classification stay unchanged for new possible (and targeted) fractions as lithium-rich slag or do MSs think of re-considering this classification? | C21: W160601 | D21: Lead batteries
B22: In the new legislation, specific lines for the Li-ion batteries might be added, following the classification of the COM(798)2020 (PbA, NiCd, LIBs and others). Please specify if your country is in the position of providing these information and please provide the available amounts in your answer, possibly by year. | C22: W160601PB | D22: Lead content of lead batteries
B23: Further disaggregation target elements of Art. 57 for the NiCd batteries (i.e. also nickel), and for the Li-ion batteries (i.e. nickel, cobalt, copper and lithium). Please specify if your country is in the position of providing these information and please provide the available amounts in your answer, possibly by year. | C23: W160602 | D23: Ni-Cd Batteries

Sheet ErrorLog
A1: Link to Error | B1: Validation Rule | C1: Cell | D1: Sheet | E1: Description | F1: Severity | G1: Former Color
A2: Go to cell | B2: DomainSpecific | C2: O13 | D2: Table_1 | E2: The value does not match the expected ratio (Collected/average put on the market last 3 years) | F2: Error | G2: 13487565
A3: Go to cell | B3: DomainSpecific | C3: O16 | D3: Table_1 | E3: The value does not match the expected ratio (Collected/average put on the market last 3 years) | F3: Error | G3: 13487565
A4: Go to cell | B4: DomainSpecific | C4: O19 | D4: Table_1 | E4: The value does not match the expected ratio (Collected/average put on the market last 3 years) | F4: Error | G4: 13487565

Sheet Changelog (hidden)
A1: Changed by | B1: SheetName | C1: Cell | D1: Change | E1: Version | F1: Date | G1: REMARKS
A2: CDD | B2: Standard macros | D2: Summations: Accept LT and LE | E2: m17 | F2: 2021-03-29
A3: CDD | B3: Several pages | D3: Hyperlinks to the same sheet have been removed | E3: 03m18 | F3: 2021-04-14
A4: CDD | D4: Change macro version v18 | E4: 03m18 | F4: 2021-04-14
A5: CDD | D5: Change password | E5: 03m18 | F5: 2021-04-14
A6: CDD | B6: Input data tables | D6: Change default sheet protection in input tables: allow selection of locked cells. | E6: 03m18 | F6: 2021-04-14
A7: CDD | B7: Summations | C7: K:L | D7: Add columns for "Non compliance Is Valid If Footnote Exists" and "Footnote Shift From Value" | E7: 03m18 | F7: 2021-04-20
A8: CRE | B8: Footnotes list, basic instructions | C8: I suppressed country specific in front of footnote, this comes from some mess last year | D8: Because: it leads confusion, in the data part there is written explanatory footnote, last year it was there is written explanatory footnote in the questionnaire, the explantory footnote are meant to explain very specific issue related to the datum that can be general and not solely country related, while country specifique notes are a document we prepare for explaining specific methodological explanation that has to go in the quality report and may differ from country to country. Here instead we have specific issues related to the inputed datum, that are usually not arising from methodological matters but by contingent situations; moreover "country specific" just creates confusion, as the country is already writen data of herself they will not report what is usually generic issues or depending from the year!!! It goes against also what we wrote in basic instructions: Please do not report footnotes that elaborate on e.g. source data and compilation methods; these are to be described in the quality report sheet. | E8: 04m18 | F8: 2021-05-05
A9: CRE | B9: all tables | C9: T1 E 28 29 and 30, T2 E30 31 and 32 | D9: deleted the standard footnotes hints, it must be only in basic instructions, moreover it was looking different | E9: 04m18 | F9: 2021-05-05
A10: CDD | B10: INDEX | D10: Include page INDEX (It was missing) | E10: 04m18 | F10: 2021-05-06
A11: CDD | B11: All visible sheets | D11: Add page footer | E11: 04m19 | F11: 2021-05-06
A12: CDD | B12: Eurostat logo | D12: Property "move but don't size with cells" | E12: 04m20 | F12: 2021-05-06
A13: CRE | B13: T1 | C13: from O10 to W19 | D13: insertion of all formulas, not meant for the lock unlock; voluntary data from O11 to W19, explanation note for voluntary data; redited the comments | E13: 05m18 | F13: 2021-05-18
A14: CRE | B14: Mandatory | C14: from O11 to W19 | D14: all mandatory cut, as these are now voluntary | E14: 05m18 | F14: 2021-05-18
A15: CRE | B15: T1 | C15: column AAAB, AC, voluntary | D15: change of messages | E15: 05m18 | F15: 2021-05-18
A16: CRE | B16: T2 | C16: from O10 to W22 | D16: insertion of all formulas, not meant for the lock unlock; re-edited the comments | E16: 05m18 | F16: 2021-05-18
A17: CRE | B17: T1 and T2 | C17: from 24E to G30 | D17: change of cells, they were wrongly aligned, integration of text… | E17: 05m18 | F17: 2021-05-18
A18: CRE | B18: Basic Instructions: | C18: several, already started in version 05m18 | D18: change of text here and there and added more info on legislation and formula | E18: 06m18 | F18: 2021-05-19
A19: CRE | B19: Validation rules | C19: several, already started in version 05m18 | D19: change of text here and there and added more info on legislation and formula | E19: 06m18 | F19: 2021-05-19
A20: CRE | B20: Index | C20: title table 2 | D20: correction of title table 2: the title was not having the second line, I had to merge it in notepad to be able to have it correctly displayed; no link was modified | E20: 06m18 | F20: 2021-05-19
A21: CRE | B21: T1 | C21: comments in blu cells | D21: comments in the voluntary cells have been deleted: not anymore valida as there was not anymore the conditional formatting | E21: 07m18 | F21: 2021-05-19
A22: CRE | B22: Summations | C22: M6 to M8 | D22: text changed from Output cannot be higher than input Total input must be higher than the specific metal input Total output must be higher than the specific metal output to Mass input must be higher than mass output Total mass input must be higher than the specific metal content mass input Total mass output must be higher than the specific metal content mass output | E22: 07m18 | F22: 2021-05-19
A23: CRE | B23: T2 | C23: from O10 to W22 | D23: colour changed for formulas, probably lost due to the failure of a save file operation! | E23: 07m18 | F23: 2021-05-19
A24: CRE | B24: ErrorLog | C24: change of column width | D24: column width changed to minimize emplty blank for short text columns and to permit to have the full line of alert visiblecolour changed for formulas, probably lost due to the failure of a save file operation! | E24: 07m18 | F24: 2021-05-19 | G24: for approval Cesar
A25: CRE | B25: Mandatory | C25: row 2 and row3 | D25: first two lines for getting started were missing, I added them | E25: 07m18 | F25: 2021-05-19 | G25: for check of Cesar (I copied from ELV)
A26: CRE | B26: T1 | C26: col G and col K | D26: formulas explanatory text dark grey cells: copied VLOOKUP formulas of the Explanatory text | E26: 07m18 | F26: 2021-05-19 | G26: for check of Cesar (I copied from the other column)
A27: CRE | B27: T2 | C27: comments mandatory cells(white) | D27: changed "red" to "light red" | E27: 07m18 | F27: 2021-05-19
A28: CRE | B28: T1 | C28: col G and col K | D28: deleted formulas explanatory text dark grey cells: copied VLOOKUP formulas of the Explanatory text: I rememberd that the numbered footnote is not available (I saw it was added this year to keep columns letter names standard) | E28: 08m18 | F28: 2021-05-20 | G28: I deleted again, I remembered that it is not necessary (for check of Cesar)
A29: CRE | B29: T1, T2 | C29: column warning AB (t1) and T (T2) | D29: correction of this text: "Warning: the target must be below 100, explanatory footnote required" into this "Warning: the rate must be below 100, explanatory footnote required" | E29: 08m18 | F29: 2021-05-20
A30: CRE | B30: Validation rules | C30: column warning AB (t1) and T (T2) | D30: added : row 35 If the reported value does not correspond or if the value is higher than 100: row 43 Finally, the rates are higher than 100%, an error message will appear: please correct the values, as the Minputs must be higher than the Moutputs. | E30: 08m18 | F30: 2021-05-20
A31: CRE | B31: Threshold | C31: row 3 | D31: added warning on collection rate higher than 100% | E31: 08m18 | F31: 2021-05-20
A32: CDD | B32: Macros | D32: Macros version 19 | E32: 10m19 | F32: 2021-05-20
D33: Macros and sheets for pre-filling
A34: CRE | B34: Validation rules | C34: clean ups of comment | D34: cleaning of text after the checks with Oscar | E34: 10m19 | F34: 2021-05-20
A35: CRE | B35: INDEX | C35: correction | D35: cut of country specific in front of explanatory footnote | E35: 10m19 | F35: 2021-05-20
A36: CRE | B36: Macros | D36: Macros version 19 reupload: Cesar fixed error in SimpleRatio | E36: 11m19 | F36: 2021-05-21
A37: CRE | B37: Basic Instructions: | C37: row 19 | D37: Message on Validation rules before transmission | E37: 11m19 | F37: 2021-05-21
A38: CDD | B38: Macros | D38: Macros version 23; Macros and sheets for pre-filling | E38: 01m23 | F38: 2022-05-19
A39: CDD | B39: Lists | D39: Password updated cell A43
A40: CRE | B40: Validation rules | C40: ROW 6 Summations | D40: Wrong W20 for table 2, it should have bee O20. Changed to O20 | E40: 01m23 | F40: 2022-05-24
A41: CRE | B41: Lists | C41: update 2022 | E41: 01m23 | F41: 2022-05-24
A42: CRE | B42: Table_1 and Table_2 | C42: cell format validation | D42: Applied formatting with the data validation excel tool, according to paragraph "2.7.3.1 Formatting data cells to permit only decimal numbers", decimals from 0 to 999999999999999 | E42: 01m23 | F42: 2022-05-24
A43: CRE | B43: Index | C43: row 21 | D43: Adding line and title for the new voluntary reporting file | E43: 01m23 | F43: 2022-05-24
A44: CRE | B44: Voluntary Sheet | C44: Manually adding sheet content from template | D44: Adapting to respect formattiong issues, small changes in the text , format decimals, locks and so on | E44: 01m23 | F44: 2022-05-24

Sheet Pre-filling parameters (hidden)
A1: Sheet From | B1: Sheet To | C1: Top Left Cell | D1: Bottom Right Cell | E1: Row Step | F1: Column Step | G1: Confidentiality flag (YES/NO) | H1: Replace locked cells (YES/NO) | I1: Hide sheet after pasting (YES/NO) | J1: Footnote Call-out (number) exists (YES/NO)
A2: Table_1 (Prefilling) | B2: Table_1 | C2: G8 | D2: W19 | E2: 1 | F2: 4 | G2: NO | H2: YES | I2: YES | J2: YES
A3: Table_2 (Prefilling) | B3: Table_2 | C3: G8 | D3: O22 | E3: 1 | F3: 4 | G3: NO | H3: YES | I3: YES | J3: YES

Sheet Lists (hidden)
A1: Country label | B1: Country code | D1: Valid flags (obs_status) | E1: Label | G1: Valid flags (obs_conf) | H1: Label | J1: Textual variables | K1: String
A2: Belgium | B2: BE | D2: E | E2: Estimated data | J2: Institutional names
A3: Bulgaria | B3: BG | D3: D | E3: Definition differs, see metadata | F3: checked: in Batteries definition differs is needed because some countries (ICELAND) may provide in table 1 also data coming from industrial batteries, or countries were the collection rate is higher because there are problem with internet sales (free riders) | J3: Eurostat Text | K3: Statistical Office of the European Union
A4: Czechia | B4: CZ | J4: Directorate Text | K4: Directorate E: Sectoral and regional statistics
A5: Denmark | B5: DK | J5: Unit Text | K5: Unit E-2: Environmental statistics and accounts; sustainable development
A6: Germany | B6: DE | J6: Data collection information
A7: Estonia | B7: EE | J7: Data Collection Text | K7: Annual reporting on batteries and accumulators and waste batteries and accumulators
A8: Ireland | B8: IE | J8: Data Collection Year | K8: 2022
A9: Greece | B9: EL | J9: Launching date | K9: 2 June 2022
A10: Spain | B10: ES | J10: Submission deadline | K10: 30 June 2022
A11: France | B11: FR | J11: EDAMIS data
A12: Croatia | B12: HR | J12: Domain name | K12: WASTE
A13: Italy | B13: IT | J13: Dataset name | K13: WASTE_BATTDAT_A
A14: Cyprus | B14: CY | J14: Web page | K14: https://webgate.ec.europa.eu/edamis/helpcenter/website/index.htm
A15: Latvia | B15: LV | J15: Functional e-mail | K15: estat-support-edamis@ec.europa.eu
A16: Lithuania | B16: LT | J16: E2 information
A17: Luxembourg | B17: LU | J17: Telephone | K17: (+352) 4301 33213
A18: Hungary | B18: HU | J18: Contact | K18: ESTAT-WASTE-STATISTICS@EC.EUROPA.EU
A19: Malta | B19: MT | J19: Methodology URL | K19: https://ec.europa.eu/eurostat/web/waste/methodology
A20: Netherlands | B20: NL | J20: Legislation URL | K20: https://ec.europa.eu/eurostat/web/waste/legislation
A21: Austria | B21: AT
A22: Poland | B22: PL
A23: Portugal | B23: PT
A24: Romania | B24: RO
A25: Slovenia | B25: SI
A26: Slovakia | B26: SK
A27: Finland | B27: FI
A28: Sweden | B28: SE
A29: United Kingdom | B29: UK
A30: Iceland | B30: IS
A31: Liechtenstein | B31: LI
A32: Norway | B32: NO
A33: Switzerland | B33: CH
A34: Montenegro | B34: ME
A35: North Macedonia | B35: MK
A36: Albania | B36: AL
A37: Serbia | B37: RS
A38: Turkey | B38: TR
A39: Bosnia and Herzegovina | B39: BA
A40: Kosovo (UNSCR 1244) | B40: XK
A42: WASTE-2022-DC

Sheet Locks (hidden)
A1: SheetName | B1: TopLeftCell | C1: BottomRightCell | D1: RowStep | E1: ColumnStep | F1: LockType | G1: Focus Back To | H1: Content is Mandatory
A3: Table_1 | B3: W8 | C3: W10 | D3: 1 | E3: 4 | F3: formulas | G3: W11 | H3: YES
A4: Table_1 | B4: W13 | C4: W19 | D4: 3 | E4: 4 | F4: formulas | G4: W11 | H4: YES
A5: Table_1 | B5: O8 | C5: S10 | D5: 1 | E5: 4 | F5: pre-filled formulas | G5: W11 | H5: YES
A6: Table_1 | B6: O13 | C6: S19 | D6: 3 | E6: 4 | F6: pre-filled formulas | G6: W11 | H6: YES
A7: Table_1 | B7: O11 | C7: S17 | D7: 3 | E7: 4 | F7: pre-filled values | G7: W11 | H7: YES
A8: Table_1 | B8: O12 | C8: S18 | D8: 3 | E8: 4 | F8: pre-filled values | G8: W11 | H8: YES
A9: Table_2 | B9: O10 | C9: O22 | D9: 3 | E9: 4 | F9: formulas | G9: O8 | H9: YES
A10: Table_2 | B10: G10 | C10: K22 | D10: 3 | E10: 4 | F10: pre-filled formulas | G10: O8 | H10: YES
A11: Table_2 | B11: G8 | C11: K21 | D11: 3 | E11: 4 | F11: pre-filled values | G11: O8 | H11: YES
A12: Table_2 | B12: G9 | C12: K22 | D12: 3 | E12: 4 | F12: pre-filled values | G12: O8 | H12: YES
A15: IMPORTANT: The same cell must not be included in two ranges. In such a case the switch will operate twice, leaving the cell in the same original state

Sheet NotStandardRules (hidden)
A1: RuleName
A2: RatioDenominatorIsAverage

Sheet CannotBeZero (hidden)
A1: Severity | B1: SheetName | C1: Top Left Cell | D1: Bottom Right Cell | E1: Row Step | F1: Column Step | G1: Zero Is Valid If Footnote Exists | H1: Footnote Shift From Value | J1: Inserted CR 20200511
A2: Warning | B2: Table_1 | C2: O8 | D2: W19 | E2: 1 | F2: 4 | G2: YES | H2: 2
A3: Warning | B3: Table_2 | C3: G8 | D3: O22 | E3: 1 | F3: 4 | G3: YES | H3: 2
J4: Checked-Cri-OK-however policy to look for old data (if not changed- no error check should be done
J11: Formulas

Sheet Thresholds (hidden)
A1: Severity | B1: SheetName | C1: Top Left Cell | D1: Bottom Right Cell | E1: Row Step | F1: Column Step | G1: Lower value | H1: Upper value | I1: Is Valid If Footnote Exists | J1: Footnote Shift From Value | K1: if there is a footnote we accept that the rule is not respected | L1: revised CR 20200511 | M1: percentage values in table 2, mandatory, values higher than 100% are no sense and not admitted, since the recovered material (output fraction) cannot be higher than the input, and the process has to refer to the material treated within calendar year. As the reporting has to cover as of article 3 points 4 and 5, all individual steps of recycling and all corresponding output fractions, this means that any leftover not yet recycled in the calendar year has to be reported for the input and output in the next calendar year,m no stock is admitted
A2: Error | B2: Table_2 | C2: G10 | D2: O22 | E2: 3 | F2: 4 | G2: 0 | H2: 100 | I2: NO | J2: 2 | K2: Top Left Cell | L2: Lower value formula | M2: Upper value formula
A3: Warning | B3: Table_1 | C3: O10 | D3: W10 | E3: 999 | F3: 4 | G3: 0 | H3: 100 | I3: YES | J3: 2
A5: Error | B5: Table_2 | C5: G8 | E5: 3 | F5: 4 | G5: G9 | I5: YES | J5: 2 | K5: RCY_INP.W160601 | L5: RCY_INP>=RCY
A6: Error | B6: Table_2 | C6: G11 | E6: 3 | F6: 4 | G6: G12 | H6: G8 | I6: YES | J6: 2 | K6: RCY_INP.W160601PB | L6: RCY_INP>=RCY | M6: RCY_INP.W160601>=RCY_INP.W160601PB
A7: Error | B7: Table_2 | C7: G14 | E7: 3 | F7: 4 | G7: G15 | I7: YES | J7: 2 | K7: RCY_INP.W160602 | L7: RCY_INP>=RCY
A8: Error | B8: Table_2 | C8: G17 | E8: 3 | F8: 4 | G8: G18 | H8: G14 | I8: YES | J8: 2 | K8: RCY_INP.W160601CD | L8: RCY_INP>=RCY | M8: RCY_INP.W160602>=RCY_INP.W160602CD
A9: Error | B9: Table_2 | C9: G20 | E9: 3 | F9: 4 | G9: G21 | I9: YES | J9: 2 | K9: RCY_INP.W160605 | L9: RCY_INP>=RCY
A10: Error | B10: Table_2 | C10: K8 | E10: 3 | F10: 4 | G10: K9 | I10: YES | J10: 2 | K10: RCY_INP.W160601 | L10: RCY_INP>=RCY
A11: Error | B11: Table_2 | C11: K11 | E11: 3 | F11: 4 | G11: K12 | H11: K8 | I11: YES | J11: 2 | K11: RCY_INP.W160601PB | L11: RCY_INP>=RCY | M11: RCY_INP.W160601>=RCY_INP.W160601PB
A12: Error | B12: Table_2 | C12: K14 | E12: 3 | F12: 4 | G12: K15 | I12: YES | J12: 2 | K12: RCY_INP.W160602 | L12: RCY_INP>=RCY
A13: Error | B13: Table_2 | C13: K17 | E13: 3 | F13: 4 | G13: K18 | H13: K14 | I13: YES | J13: 2 | K13: RCY_INP.W160601CD | L13: RCY_INP>=RCY | M13: RCY_INP.W160602>=RCY_INP.W160602CD
A14: Error | B14: Table_2 | C14: K20 | E14: 3 | F14: 4 | G14: K21 | I14: YES | J14: 2 | K14: RCY_INP.W160605 | L14: RCY_INP>=RCY
A15: Error | B15: Table_2 | C15: O8 | E15: 3 | F15: 4 | G15: O9 | I15: YES | J15: 2 | K15: RCY_INP.W160601 | L15: RCY_INP>=RCY
A16: Error | B16: Table_2 | C16: O11 | E16: 3 | F16: 4 | G16: O12 | H16: O8 | I16: YES | J16: 2 | K16: RCY_INP.W160601PB | L16: RCY_INP>=RCY | M16: RCY_INP.W160601>=RCY_INP.W160601PB
A17: Error | B17: Table_2 | C17: O14 | E17: 3 | F17: 4 | G17: O15 | I17: YES | J17: 2 | K17: RCY_INP.W160602 | L17: RCY_INP>=RCY
A18: Error | B18: Table_2 | C18: O17 | E18: 3 | F18: 4 | G18: O18 | H18: O14 | I18: YES | J18: 2 | K18: RCY_INP.W160601CD | L18: RCY_INP>=RCY | M18: RCY_INP.W160602>=RCY_INP.W160602CD
A19: Error | B19: Table_2 | C19: O20 | E19: 3 | F19: 4 | G19: O21 | I19: YES | J19: 2 | K19: RCY_INP.W160605 | L19: RCY_INP>=RCY
A20: Error | B20: Table_2 | C20: G9 | E20: 3 | F20: 4 | G20: G12 | H20: G8 | I20: YES | J20: 2 | K20: RCY.W160601 | L20: RCY.W160601>=RCY.W160601PB | M20: RCY_INP>=RCY
A21: Error | B21: Table_2 | C21: G12 | E21: 3 | F21: 4 | H21: G11 | I21: YES | J21: 2 | K21: RCY.W160601PB | M21: RCY_INP>=RCY
A22: Error | B22: Table_2 | C22: G15 | E22: 3 | F22: 4 | G22: G18 | H22: G14 | I22: YES | J22: 2 | K22: RCY.W160602 | L22: RCY.W160602>=RCY.W160602CD | M22: RCY_INP>=RCY
A23: Error | B23: Table_2 | C23: G18 | E23: 3 | F23: 4 | H23: G17 | I23: YES | J23: 2 | K23: RCY.W160601CD | M23: RCY_INP>=RCY
A24: Error | B24: Table_2 | C24: G21 | E24: 3 | F24: 4 | H24: G20 | I24: YES | J24: 2 | K24: RCY.W160605 | M24: RCY_INP>=RCY
A25: Error | B25: Table_2 | C25: K9 | E25: 3 | F25: 4 | G25: K12 | H25: K8 | I25: YES | J25: 2 | K25: RCY.W160601 | L25: RCY.W160601>=RCY.W160601PB | M25: RCY_INP>=RCY
A26: Error | B26: Table_2 | C26: K12 | E26: 3 | F26: 4 | H26: K11 | I26: YES | J26: 2 | K26: RCY.W160601PB | M26: RCY_INP>=RCY
A27: Error | B27: Table_2 | C27: K15 | E27: 3 | F27: 4 | G27: K18 | H27: K14 | I27: YES | J27: 2 | K27: RCY.W160602 | L27: RCY.W160602>=RCY.W160602CD | M27: RCY_INP>=RCY
A28: Error | B28: Table_2 | C28: K18 | E28: 3 | F28: 4 | H28: K17 | I28: YES | J28: 2 | K28: RCY.W160601CD | M28: RCY_INP>=RCY
A29: Error | B29: Table_2 | C29: K21 | E29: 3 | F29: 4 | H29: K20 | I29: YES | J29: 2 | K29: RCY.W160605 | M29: RCY_INP>=RCY
A30: Error | B30: Table_2 | C30: O9 | E30: 3 | F30: 4 | G30: O12 | H30: O8 | I30: YES | J30: 2 | K30: RCY.W160601 | L30: RCY.W160601>=RCY.W160601PB | M30: RCY_INP>=RCY
A31: Error | B31: Table_2 | C31: O12 | E31: 3 | F31: 4 | H31: O11 | I31: YES | J31: 2 | K31: RCY.W160601PB | M31: RCY_INP>=RCY
A32: Error | B32: Table_2 | C32: O15 | E32: 3 | F32: 4 | G32: O18 | H32: O14 | I32: YES | J32: 2 | K32: RCY.W160602 | L32: RCY.W160602>=RCY.W160602CD | M32: RCY_INP>=RCY
A33: Error | B33: Table_2 | C33: O18 | E33: 3 | F33: 4 | H33: O17 | I33: YES | J33: 2 | K33: RCY.W160601CD | M33: RCY_INP>=RCY
A34: Error | B34: Table_2 | C34: O21 | E34: 3 | F34: 4 | H34: O20 | I34: YES | J34: 2 | K34: RCY.W160605 | M34: RCY_INP>=RCY

Sheet IsFormula - cancelled (hidden)
A1: Severity | B1: Sheet Name | C1: Top Left Cell | D1: Bottom Right Cell | E1: Row Step | F1: Column Step | H1: Verified CR 20200504
A2: Info | B2: Table_1 | C2: O8 | D2: W10 | E2: 1 | F2: 4 | H2: COL(%)=[COL(T)/(MKT.{Year}+MKT.{Year-1}+MKT.{Year-2})]*3*100
A3: Info | B3: Table_1 | C3: O13 | D3: W19 | E3: 3 | F3: 4
A4: Info | B4: Table_2 | C4: G10 | D4: O22 | E4: 3 | F4: 4

Sheet Summations (hidden)
A1: Severity | B1: Sheet Name | C1: List of Cells (first block) | D1: First Total Cell (first block) | E1: Last Total Cell (Last block) | F1: Row Block Repetition Step | G1: Column Block Repetition Step | H1: Greater or Equal | I1: Valid Tolerance | J1: Only if all data is available | K1: Non compliance Is Valid If Footnote Exists | L1: Footnote Shift From Value | M1: Display text in error | P1: Verified CR 20200504
A2: Error | B2: Table_1 | C2: O11,O14,O17 | D2: O8 | E2: W8 | F2: 999 | G2: 4 | H2: EQ | I2: 0.1 | J2: YES | K2: NO | L2: 3 | M2: Summation not consistent: "Portable batteries and accumulator-Sales" should be equal to the sum of the "Sales" of the other three batteries types | P2: M8=M11+M14+M17
A3: Error | B3: Table_1 | C3: O11,O14,O17 | D3: O8 | E3: W8 | F3: 999 | G3: 4 | H3: GE | I3: 0.1 | J3: NO | K3: NO | L3: 3 | M3: Summation not consistent: "Portable batteries and accumulator-Sales" should be equal or higher than the sum for the "Sales" of the reported batteries types
A4: Error | B4: Table_1 | C4: O12,O15,O18 | D4: O9 | E4: W9 | F4: 999 | G4: 4 | H4: EQ | I4: 0.1 | J4: YES | K4: NO | L4: 3 | M4: Summation not consistent: "Portable batteries and accumulator-Collection" should be equal to the sum of the "Collection" of the other three batteries types
A5: Error | B5: Table_1 | C5: O12,O15,O18 | D5: O9 | E5: W9 | F5: 999 | G5: 4 | H5: GE | I5: 0.1 | J5: NO | K5: NO | L5: 3 | M5: Summation not consistent: "Portable batteries and accumulator-Collection" should be equal or higher than the sum for the "Collection" of the reported batteries types
A6: Error | B6: Table_2 | C6: G9 | D6: G8 | E6: O20 | F6: 3 | G6: 4 | H6: GE | I6: 0 | J6: YES | K6: NO | L6: 3 | M6: Mass input must be higher than mass output
A7: Error | B7: Table_2 | C7: G11 | D7: G8 | E7: O17 | F7: 6 | G7: 4 | H7: GE | I7: 0 | J7: YES | K7: NO | L7: 3 | M7: Total mass input must be higher than the specific metal content mass input
A8: Error | B8: Table_2 | C8: G12 | D8: G9 | E8: O18 | F8: 6 | G8: 4 | H8: GE | I8: 0 | J8: YES | K8: NO | L8: 3 | M8: Total mass output must be higher than the specific metal content mass output
F12: Must be > 0 for a not relevant dimension. Else you get an infinite loop | H12: EQ or GE or GT | I12: GT does not admit Tolerance | J12: NO or YES
A14: DESCRIPTION
A15: This sheet is meant to define the validation for summations in a row or in a column.
A16: - A block is defined as a sequence of addendums in the same row or column
A17: - Only the first block must be explicitly defined
A18: - The block can be repeated at regular patterns through rows and columns at the same time
A21: PARAMETRES
A22: SheetName | C22: Name of the sheet to be validated (e.g. Table 1)
A23: List of Cells (first block) | C23: First cell in the first block to be validated
A24: First TotalCell (first block)
A25: Last TotalCell (Last block)
A26: Row Block Repetition Step
A27: Column Block Repetition Step
A28: Greater or Equal
A29: Valid Threshold
A30: Only if all data is available
A31: Display text in error | C31: Valid values: EQ (Strictly equal); GE (Greater or Equal); GT (Strictly greater - No threshold will be considered)
D110: =SUM(Summations!B3º) -> 

Sheet SimpleRatios (hidden)
A1: Severity | B1: Sheet Name | C1: Numerator (first block) | D1: Denominator (first block) | E1: First result (First block) | F1: Last result (Last block) | G1: Row Block Repetition Step | H1: Column Block Repetition Step | I1: Numerator multiplied by | J1: Ratio Greater or Equal than result cell | K1: Valid Tolerance | L1: If denominator = 0 | M1: Display text in error | N1: Accept error If Footnote Exists | O1: Column shift from value to footnote | Q1: Changed 20200527
A2: Error | B2: Table_2 | C2: G9 | D2: G8 | E2: G10 | F2: O22 | G2: 3 | H2: 4 | I2: 100 | J2: EQ | K2: 0.1 | L2: ZERO | M2: Zero denominator error: the rate is calculated as output mass divided by the input mass | N2: YES | O2: 3
G6: Must be > 0 for a not relevant dimension. Else you get an infinite loop

Sheet Mandatory (hidden)
A1: Severity | B1: SheetName | C1: Top Left Cell | D1: Bottom Right Cell | E1: Row Step | F1: Column Step | G1: Empty Is Valid If Footnote Exists | H1: Footnote Shift From Value | J1: Verified CR 20200504
A2: Error | B2: GETTING STARTED | C2: E9 | D2: E10 | E2: 1 | F2: 999 | G2: NO | H2: 999 | I2: STANDARD FOR ALL QUESTIONNAIRES
A3: Error | B3: GETTING STARTED | C3: D14 | D3: D22 | E3: 2 | F3: 999 | G3: NO | H3: 999
A4: Error | B4: Table_1 | C4: O8 | D4: W9 | E4: 1 | F4: 4 | G4: YES | H4: 2
A5: Error | B5: Table_2 | C5: G8 | D5: O9 | E5: 1 | F5: 4 | G5: YES | H5: 2
A6: Error | B6: Table_2 | C6: G11 | D6: O12 | E6: 1 | F6: 4 | G6: YES | H6: 2
A7: Error | B7: Table_2 | C7: G14 | D7: O15 | E7: 1 | F7: 4 | G7: YES | H7: 2
A8: Error | B8: Table_2 | C8: G17 | D8: O18 | E8: 1 | F8: 4 | G8: YES | H8: 2
A9: Error | B9: Table_2 | C9: G20 | D9: O21 | E9: 1 | F9: 4 | G9: YES | H9: 2
A10: Error | B10: Table_1 | C10: O10 | D10: W10 | E10: 1 | F10: 4 | G10: YES | H10: 2 | J10: Formulas
A11: Error | B11: Table_2 | C11: G10 | D11: O10 | E11: 1 | F11: 4 | G11: YES | H11: 2
A12: Error | B12: Table_2 | C12: G13 | D12: O13 | E12: 1 | F12: 4 | G12: YES | H12: 2
A13: Error | B13: Table_2 | C13: G16 | D13: O16 | E13: 1 | F13: 4 | G13: YES | H13: 2
A14: Error | B14: Table_2 | C14: G19 | D14: O19 | E14: 1 | F14: 4 | G14: YES | H14: 2
A15: Error | B15: Table_2 | C15: G22 | D15: O22 | E15: 1 | F15: 4 | G15: YES | H15: 2

Sheet MustNotBeNegative (hidden)
A1: Severity | B1: SheetName | C1: TopLeftCell | D1: BottomRightCell | E1: RowStep | F1: ColumnStep | H1: Verified CR 20200504
A2: Error | B2: Table_1 | C2: O8 | D2: W19 | E2: 1 | F2: 4
A3: Error | B3: Table_2 | C3: G8 | D3: O22 | E3: 1 | F3: 4

Sheet FoototeContent (hidden)
A1: SheetName | B1: TopLeftCell | C1: BottomRightCell | D1: RowStep | E1: ColumnStep | F1: DistanceFromReferenceToText | H1: Verified CR 20200504
A2: Table_1 | B2: Q8 | C2: Y19 | D2: 1 | E2: 4 | F2: 1
A3: Table_2 | B3: I8 | C3: Q22 | D3: 1 | E3: 4 | F3: 1

Sheet IsNumeric (hidden)
A1: Severity | B1: SheetName | C1: TopLeftCell | D1: BottomRightCell | E1: RowStep | F1: ColumnStep
A2: Error | B2: Table_1 | C2: O8 | D2: W19 | E2: 1 | F2: 4
A3: Error | B3: Table_2 | C3: G8 | D3: O22 | E3: 1 | F3: 4
